Cogmind - Beta 16.1 @@@ ROGUE MODE // 2026.04.03 @ 13:43:43 Player: Plexion Result: Destroyed by Executioner with Helical Railgun Performance ------------- Evolutions (9) 4500 Regions Visited (31) 6200 Robots Destroyed (430) 2150 Value Destroyed (21610) 21610 Prototype IDs (80) 1600 Alien Tech Used (2) 400 Bonus (10767) 10767 TOTAL SCORE: 47227 Bonus ------- High Alert Combat Kills 2313 Follower Combat Kills 1899 Entered Garrisons 400 Entered DSFs 500 Network Hubs Disabled 400 Met Data Miner 300 Acquired ECA 300 Met Warlord at Base 500 MAIN.C Attacked Warlord 500 Warlord Defense Kills 2624 Built Enhanced Grunts 300 Met R17 at Cetus 500 Met R17 at Research 2000 Scanned by Researcher 500 Pursued by Intercept 500 Friendly Fire -2769 Cogmind --------- Core Integrity 0/1600 Matter 183/300 Energy 99/100 System Corruption 0% Temperature Cool (0) Movement Core (50) Location -1/Command Parts ------- > --- POWER (4) -------- (None) > --- PROPULSION (6) --- (None) > --- UTILITY (11) ----- Experimental Core Analyzer Graphene Brace > --- WEAPON (4) ------- (None) > --- INVENTORY (5) ---- Advanced Coolant Injector Quantum Capacitor Subatomic Replicator Peak State ------------ > --- POWER ------------ Improved Quantum Reactor Improved Quantum Reactor Vortex Chain Reactor > --- PROPULSION ------- Centrium Heavy Treads Centrium Heavy Treads Advanced Heavy Siege Treads > --- UTILITY ---------- Experimental Heat Sink Huge Storage Unit Experimental Optical Array Experimental Core Analyzer Centrium Medium Armor Plating Centrium Medium Armor Plating Graphene Brace AEGIS Remote Shield Experimental Hacking Suite > --- WEAPON ----------- Enhanced Quantum Rifle Helical Railgun Core Stripper > --- INVENTORY -------- Improved Quantum Reactor Centrium Heavy Treads Improved Cooling System Advanced Coolant Injector Matter Compressor Seismic Detector Weapon Mount Quantum Capacitor Centrium Medium Armor Plating System Mapper Dimensional Node Initializer Transdimensional Reconstructor High-powered Transdimensional Reconstructor Subatomic Replicator Enhanced Quantum Rifle Enhanced Quantum Rifle Vortex Driver Advanced KE Penetrator Advanced KE Penetrator Helical Railgun Helical Railgun Neutron Missile Launcher [Rating: 229] Favorites ----------- Power Quantum Reactor Engine Deuterium Engine Power Core Fission Core Reactor Quantum Reactor Propulsion Light Treads Treads Light Treads Leg Enhanced Armored Leg Wheel Wheel Hover Unit Combat Linear Gravjet Utility Centrium Medium Armor Plating Device Improved Cooling System Storage Huge Storage Unit Processor Rainbow Chip Hackware Experimental Hacking Suite Protection Centrium Medium Armor Plating Weapon Advanced KE Penetrator Energy Gun Advanced Variable Charge Gun Energy Cannon Heavy Plasma Cannon Ballistic Gun Advanced KE Penetrator Ballistic Cannon Mass Driver Launcher Mini Grenade Launcher Special Weapon Remote Datajack Impact Weapon Hammer Slashing Weapon Katana Piercing Weapon Makeshift Spear Build | -11 -10 -10 -10 -8 -8 -8 -8 -7 -7 -6 -6 -6 -6 -5 -5 -5 -5 -5 -5 -4 -4 -4 -4 -3 -3 -3 -2 -2 -2 -1 -1 ------- Run | Yrd Mat Min Sub Mat Gar Mat Gar Fac DSF Fac Low Low Dat Pro Fac Ext Cet Arc Hub Fac Upp Upp War Pro Res Tes Res Qua Sec Acc Com Slots Evolved 18 | . . . . 4 . . . 2 . 2 . . . . 2 . . . . 2 . . . . 2 . 2 . . 2 . Power 3 | . . . . . . . . . . 1 . . . . . . . . . . . . . . 1 . 1 . . . . Propulsion 4 | . . . . 2 . . . . . . . . . . 1 . . . . . . . . . . . 1 . . . . Utility 9 | . . . . 1 . . . 1 . 1 . . . . 1 . . . . 2 . . . . 1 . . . . 2 . Weapon 2 | . . . . 1 . . . 1 . . . . . . . . . . . . . . . . . . . . . . . Parts Attached 263 | 9 1 . 19 27 5 8 9 . 4 7 5 . . 11 16 12 8 13 10 14 . . 11 1 14 10 14 17 14 . 4 Power 35 | 2 . . 2 2 . 1 2 . . 4 . . . 1 2 3 2 1 1 1 . . . . 5 . 3 2 1 . . Engine 9 | 2 . . 1 2 . . . . . 1 . . . . . 2 . 1 . . . . . . . . . . . . . Core 12 | . . . 1 . . 1 2 . . 2 . . . 1 2 1 . . . 1 . . . . 1 . . . . . . Reactor 14 | . . . . . . . . . . 1 . . . . . . 2 . 1 . . . . . 4 . 3 2 1 . . Propulsion 68 | 2 . . 7 11 2 3 5 . 2 . . . . 6 5 5 2 1 3 1 . . 2 . 2 . 3 2 1 . 3 Treads 52 | 2 . . . 9 2 3 5 . 2 . . . . 6 3 3 2 1 3 1 . . 2 . 2 . 3 2 1 . . Leg 1 | . . . . . . . . . . . . . . . 1 . . . . . . . . . . . . . . . . Wheel 11 | . . . 7 1 . . . . . . . . . . 1 2 . . . . . . . . . . . . . . . Hover 4 | . . . . 1 . . . . . . . . . . . . . . . . . . . . . . . . . . 3 Flight . | . . . . . . . . . . . . . . . . . . . . . . . . . . . . . . . . Utility 94 | 2 1 . 3 7 2 2 . . 1 3 2 . . 1 5 1 4 9 3 9 . . 7 1 6 6 6 8 4 . 1 Device 58 | 1 . . 2 2 2 . . . . . 1 . . . 4 . 1 7 3 5 . . 4 1 5 5 4 6 4 . 1 Storage 4 | 1 1 . . 1 . . . . . 1 . . . . . . . . . . . . . . . . . . . . . Processor 8 | . . . . . . . . . . . . . . . . . 1 1 . 1 . . 2 . 1 1 1 . . . . Hackware 5 | . . . . . . . . . . 1 . . . . . . . 1 . 1 . . . . . . 1 1 . . . Protection 19 | . . . 1 4 . 2 . . 1 1 1 . . 1 1 1 2 . . 2 . . 1 . . . . 1 . . . Artifact . | . . . . . . . . . . . . . . . . . . . . . . . . . . . . . . . . Weapon 66 | 3 . . 7 7 1 2 2 . 1 . 3 . . 3 4 3 . 2 3 3 . . 2 . 1 4 2 5 8 . . Energy Gun 18 | . . . . 1 . . . . 1 . 2 . . . 2 1 . 1 . 1 . . 1 . . 2 1 2 3 . . Energy Cannon 5 | . . . 2 . . . . . . . . . . 1 . . . . . . . . 1 . . . . . 1 . . Ballistic Gun 29 | 3 . . 2 4 . 1 2 . . . 1 . . 1 . 2 . 1 3 . . . . . 1 1 1 2 4 . . Ballistic Cannon 2 | . . . . . . . . . . . . . . . 1 . . . . . . . . . . 1 . . . . . Launcher 4 | . . . . 2 . . . . . . . . . . . . . . . 2 . . . . . . . . . . . Special Weapon 2 | . . . . . . . . . . . . . . 1 1 . . . . . . . . . . . . . . . . Impact Weapon 3 | . . . 2 . . . . . . . . . . . . . . . . . . . . . . . . 1 . . . Slashing Weapon 2 | . . . . . 1 1 . . . . . . . . . . . . . . . . . . . . . . . . . Piercing Weapon 1 | . . . 1 . . . . . . . . . . . . . . . . . . . . . . . . . . . . Special Melee Weapon . | . . . . . . . . . . . . . . . . . . . . . . . . . . . . . . . . Unidentified Prototypes 52 | . . . . 3 . . . . . . . . . . 5 . 2 1 2 4 . . 5 . 4 7 6 9 3 . 1 Corrupted Parts 7 | . . . . . . . . . . . . . . . . . 2 . 5 . . . . . . . . . . . . System Corruption 41 | . . . . . . . . . . . . . . . . . 7 . 34 . . . . . . . . . . . . Parts Lost 87 | . . . 11 . . . 4 . 1 . 2 . . 9 11 3 . . . 3 2 . 2 . 1 2 . 5 27 . 4 Power 12 | . . . 4 . . . . . . . . . . 1 2 . . . . 1 . . . . . . . 1 3 . . Propulsion 27 | . . . 5 . . . 2 . 1 . . . . 5 5 2 . . . . . . . . . . . . 4 . 3 Utility 18 | . . . . . . . . . . . . . . 1 1 . . . . 2 1 . 1 . . 1 . 1 9 . 1 Weapon 30 | . . . 2 . . . 2 . . . 2 . . 2 3 1 . . . . 1 . 1 . 1 1 . 3 11 . . Highest Loss Streak 22 | . . . 4 . . . 2 . 1 . 1 . . 5 9 2 . . . 1 2 . 2 . 1 1 . 3 22 . 4 To Critical Strikes 3 | . . . . . . . . . . . . . . 1 . . . . . . . . . . . . . 2 . . . Average Backups 19 | 2 5 6 10 18 19 20 18 18 19 20 19 19 20 17 20 21 23 23 23 22 22 23 22 22 21 21 22 21 19 4 3 Power . | . 1 1 . . 1 . . . . . . . . . 2 1 1 1 1 1 1 1 1 1 1 1 1 1 . . . Propulsion 1 | 1 2 2 . 1 2 2 1 3 2 1 1 1 1 . 1 3 2 1 1 1 2 2 2 2 2 2 1 1 . . . Utility 10 | . . 1 5 8 10 10 11 10 10 12 11 11 11 10 9 9 10 9 9 9 11 12 12 13 13 12 13 9 8 2 2 Weapon 5 | . 1 2 4 6 5 6 4 3 3 5 4 4 5 3 3 5 6 9 8 8 7 7 6 5 4 4 5 6 5 . . Tool/Special . | . . . . . . . . . . . . . . . . . . . . . . . . . . . . . . . . Unused Backups 36 | . . . . 2 1 1 2 . . 4 . . . . . 2 6 . . 2 . . 4 . 1 1 4 . 4 . 2 Power 1 | . . . . . . . . . . . . . . . . 1 . . . . . . . . . . . . . . . Propulsion 6 | . . . . 1 . 1 2 . . . . . . . . . 2 . . . . . . . . . . . . . . Utility 18 | . . . . . 1 . . . . 3 . . . . . . 4 . . 1 . . 2 . 1 1 2 . 2 . 1 Weapon 7 | . . . . 1 . . . . . . . . . . . 1 . . . 1 . . 2 . . . 2 . . . . Tool/Special 4 | . . . . . . . . . . 1 . . . . . . . . . . . . . . . . . . 2 . 1 Average Slot Usage (%) 89 | . 96 99 87 95 100 99 99 98 98 92 92 93 93 88 81 91 89 83 90 90 90 90 88 90 88 89 82 81 75 8 17 Engine 2 | . 14 14 6 8 9 . . . . 4 . . . . . 2 1 . 4 2 . . . . . . . . . . . Core 2 | . . . 2 . . 8 9 7 7 5 6 6 6 10 9 7 3 . . . . . . . . . . . . . . Reactor 5 | . . . . . . . . . . 1 6 6 6 . . . 5 10 9 8 9 9 9 9 10 13 12 12 10 . . Treads 21 | . 28 28 3 31 36 35 35 30 28 26 26 26 26 22 17 19 22 17 19 17 18 18 18 19 15 13 11 12 12 . . Wheel 1 | . . . 20 4 . . . . . . . . . . 1 6 . . . . . . . . . . . . . . . Device 12 | . 10 13 10 5 9 9 9 15 11 12 13 13 13 13 16 17 11 13 12 15 15 13 12 9 12 15 12 13 12 4 5 Storage 6 | . 14 14 14 9 9 9 9 7 7 6 6 6 6 6 5 5 5 4 4 4 4 4 4 4 4 4 4 4 3 . . Processor 5 | . . . . . . . . . . . . . . . . . 4 5 9 12 13 13 14 19 17 18 12 9 7 4 4 Protection 6 | . . . 2 8 9 9 9 7 10 6 6 6 6 6 5 5 7 3 4 6 6 9 8 8 8 6 8 7 6 . . Energy Gun 5 | . . . . . . . . . 3 5 10 13 13 7 6 9 11 10 9 7 9 9 5 3 4 3 7 7 6 . . Ballistic Gun 14 | . 28 28 6 23 24 25 27 29 26 20 15 13 13 12 7 8 11 11 14 13 13 13 13 14 13 13 9 8 8 . . Peak Build Rating 229 | 7 7 7 17 37 38 39 40 41 48 64 65 65 65 71 78 89 129 158 161 185 178 176 182 182 197 194 220 229 224 21 50 Average Rating 106 | 4 6 6 11 30 36 36 38 40 45 59 63 64 65 65 68 78 109 124 153 176 175 176 174 180 185 182 212 214 202 21 39 On Entrance 91 | . 7 7 7 12 35 37 35 37 41 47 61 64 65 65 69 74 85 129 154 161 178 176 176 182 181 181 182 218 216 21 21 Avg Prop Armor Cover (%) 9 | . . . 9 6 . . . . . . . . . . 12 10 . . . . . . 4 . . . . . . . 14 Naked Turns . | . . . . . . . . . . . . . . . . . . . . . . . . . . . . . . . . Heaviest Build 214 | 15 30 30 42 81 81 80 68 71 90 135 135 133 133 146 146 146 155 168 166 174 169 165 175 173 176 174 192 209 214 1 7 Greatest Support 250 | 40 40 40 40 83 83 83 83 80 80 80 80 80 80 96 91 136 190 210 217 230 214 214 214 214 214 177 235 250 250 3 28 Greatest Overweight (x) 26 | . . . 10 3 . . . . 1 1 1 1 1 3 13 12 1 . . 1 1 . . . . . . . 26 . . Average Overweight (x) . | . . . 1 . . . . . . 1 1 1 1 1 3 4 . . . . . . . . . . . . . . . Largest Inventory Capacity 25 | 8 15 15 15 20 20 20 20 20 20 25 25 25 25 25 25 25 25 25 25 25 25 25 25 25 25 25 25 25 25 5 5 Average Capacity 22 | 6 12 15 15 19 20 20 20 20 20 24 25 25 25 25 25 25 25 25 25 25 25 25 25 25 25 25 25 25 24 5 5 Most Carried 25 | 5 7 7 15 20 20 20 20 19 20 25 25 23 23 23 25 25 25 25 25 25 25 25 25 25 25 25 25 25 25 5 5 Average Carried 21 | 2 5 6 12 18 19 20 18 18 19 24 22 22 23 20 22 22 24 24 24 23 24 25 24 25 24 24 24 24 22 5 4 Final Capacity 25 | 8 15 15 15 20 20 20 20 20 20 25 25 25 25 25 25 25 25 25 25 25 25 25 25 25 25 25 25 25 5 5 5 Final Carried 25 | 4 6 7 15 20 20 20 20 18 20 24 22 23 23 22 20 23 25 25 24 25 25 25 25 25 24 25 25 25 5 5 4 Class Distribution -------------------- 67% | Scavenger-Tank 12% | Generator-Tank 11% | Mutant 6% | Tank 3% | Scavenger-Mutant Dominant Class ---------------- Mutant | -10/Materials Mutant | -10/Mines Mutant | -10/Subcaves Scavenger-Tank | -8/Materials Tank | -8/Garrison Scavenger-Tank | -8/Materials Scavenger-Tank | -8/Garrison Scavenger-Tank | -7/Factory Scavenger-Tank | -7/DSF Scavenger-Tank | -6/Factory Scavenger-Tank | -6/Lower Caves Scavenger-Tank | -6/Lower Caves Scavenger-Tank | -6/Data Miner Scavenger-Tank | -5/Proximity Caves Scavenger-Tank | -5/Factory Scavenger-Tank | -5/Extension Scavenger-Tank | -5/Cetus Scavenger-Tank | -5/Archives Scavenger-Tank | -5/Hub_04(d) Scavenger-Tank | -4/Factory Scavenger-Tank | -4/Upper Caves Scavenger-Tank | -4/Upper Caves Scavenger-Tank | -4/Warlord Scavenger-Tank | -3/Proximity Caves Scavenger-Tank | -3/Research Scavenger-Tank | -3/Testing Generator-Tank | -2/Research Generator-Tank | -2/Quarantine Generator-Tank | -2/Section 7 Mutant | -1/Access Mutant | -1/Command Resources | -11 -10 -10 -10 -8 -8 -8 -8 -7 -7 -6 -6 -6 -6 -5 -5 -5 -5 -5 -5 -4 -4 -4 -4 -3 -3 -3 -2 -2 -2 -1 -1 ----------- Run | Yrd Mat Min Sub Mat Gar Mat Gar Fac DSF Fac Low Low Dat Pro Fac Ext Cet Arc Hub Fac Upp Upp War Pro Res Tes Res Qua Sec Acc Com Matter Collected 14545 | 243 30 319 431 1097 1193 597 860 . 263 329 681 27 . 493 526 595 320 384 287 1357 190 3 929 225 442 559 296 868 992 . 9 Remotely 522 | . . . . . . . . . . . . . . . . . . . . . . . . . . . . . 522 . . Salvage Created 22276 | 24 43 138 617 1903 1189 733 1149 . 545 364 628 9 . 449 1040 1253 363 359 1029 2181 295 . 1099 139 418 858 433 2154 2864 . . Parts 1178 | 3 9 11 52 103 77 46 65 . 38 18 20 1 . 31 47 47 17 33 44 130 15 . 58 11 20 61 20 83 118 . . Haulers Intercepted 27 | . . . . 6 . 3 . . . . . . . . 2 1 . . 3 1 . . . . 2 1 3 2 3 . . Recyclers Shooed 7 | . . . . . . 1 . . . . . . . . 2 1 . . . 2 . . . . . 1 . . . . . Parts Field Recycled . | . . . . . . . . . . . . . . . . . . . . . . . . . . . . . . . . Retrieved Matter . | . . . . . . . . . . . . . . . . . . . . . . . . . . . . . . . . Parts Self-Destructed 78 | . . . 16 . . . . . . . 20 . . 18 . . . . . . 13 . . 11 . . . . . . . Prevented . | . . . . . . . . . . . . . . . . . . . . . . . . . . . . . . . . Parts Restored . | . . . . . . . . . . . . . . . . . . . . . . . . . . . . . . . . Kills | -11 -10 -10 -10 -8 -8 -8 -8 -7 -7 -6 -6 -6 -6 -5 -5 -5 -5 -5 -5 -4 -4 -4 -4 -3 -3 -3 -2 -2 -2 -1 -1 ------- Run | Yrd Mat Min Sub Mat Gar Mat Gar Fac DSF Fac Low Low Dat Pro Fac Ext Cet Arc Hub Fac Upp Upp War Pro Res Tes Res Qua Sec Acc Com Combat Hostiles Destroyed 329 | . 3 2 15 29 34 10 25 . 8 6 11 . . 13 18 12 2 . 5 34 4 . 19 3 4 11 1 22 38 . . Melee 11 | . . . 7 3 . . . . . . . . . . . . . . . . . . . . . . . . 1 . . Guns 258 | . 3 2 5 18 27 10 25 . 8 6 11 . . 4 6 10 2 . 5 27 4 . 19 2 4 11 1 19 29 . . Cannons 12 | . . . 3 . . . . . . . . . . 1 6 1 . . . . . . . . . . . . 1 . . AOE 42 | . . . . 8 7 . . . . . . . . 8 3 . . . . 7 . . . 1 . . . 2 6 . . Classes Destroyed 30 | 1 1 2 2 8 1 1 1 . 1 . . 1 . 3 . . . . . . 1 . 4 . . . . 1 2 . . Worker 22 | . . 2 . 3 . . . . . . . . . . 3 1 . . 5 . . . . . 1 2 2 2 1 . . Builder 10 | . . . . 1 . 1 . . . . . . . . . 1 . . 1 . . . . . . 1 . 1 4 . . Tunneler 5 | 1 . 2 . . . . . . . . . . . . . . . . . 2 . . . . . . . . . . . Hauler 27 | . . . . 6 . 3 . . . . . . . . 2 1 . . 3 1 . . . . 2 1 3 2 3 . . Recycler 6 | . . . . 3 . . . . . . . . . . . 2 . . 1 . . . . . . . . . . . . Operator 18 | . . . . . . 2 . . . . . . . . 1 . . 9 1 1 . . . . 1 . . 2 1 . . Drone 3 | . . . . . . . . . . . . . . 2 . . . . . . . . . 1 . . . . . . . Watcher 6 | . . . . 3 . . . . . . . . . . 1 1 . . . . . . . . . . . . 1 . . Swarmer 68 | . 3 . . 8 14 . 4 . . . . . . 4 5 1 . . . 13 . . 1 . 4 3 . . 8 . . Saboteur 1 | . . . . . . . . . . . . . . . . . . . . . . . . . . . . . 1 . . Grunt 93 | . . 2 . 12 4 7 12 . 4 . 9 . . 3 5 5 . . 3 5 . . 4 . . 2 . 3 13 . . Brawler 8 | . . . . 1 5 . . . . . 1 . . . . . . . . . . . 1 . . . . . . . . Duelist 4 | . . . . . 1 . . . . . . . . . . 1 . . . . . . 1 . . . . . 1 . . Protector 3 | . . . . . . . . . . . . . . . . . . . . . . . 3 . . . . . . . . Researcher 2 | . . . . . . . . . . . . . . . . . . . . . . . . . . . . . 2 . . Sentry 42 | . . . . 6 10 2 5 . . 5 . . . 1 . 4 . . 1 5 . . . . . . . . 3 . . Demolisher 3 | . . . . . . . . . . . . . . . . . . . . . . . 3 . . . . . . . . Specialist 3 | . . . . . . . . . 3 . . . . . . . . . . . . . . . . . . . . . . Hunter 17 | . . . . 1 . . 1 . . . 1 . . . . . . . . 4 . . . . . . . 5 5 . . Programmer 53 | . . . . . . . 3 . . 1 . . . 2 8 . . . 1 6 2 . 3 2 . 6 1 13 5 . . Heavy 3 | . . . . 1 . 1 . . 1 . . . . . . . . . . . . . . . . . . . . . . Behemoth 3 | . . . . . . . . . . . . . . 1 . 1 . . . 1 . . . . . . . . . . . Cetus Guard 2 | . . . . . . . . . . . . . . . . . 2 . . . . . . . . . . . . . . Enhanced Grunt 1 | . . . . . . . . . . . . . . . . . . . 1 . . . . . . . . . . . . Tracker 1 | . . . . . . . . . . . . . . . . . . . . . . . . . . . . . 1 . . Combat Programmer 1 | . . . . . . . . . . . . . . . . . . . . . . . . . . . . . 1 . . Striker 2 | . . . . . . . . . . . . . . . . . . . . . . . 2 . . . . . . . . Executioner 1 | . . . . . . . . . . . . . . . . . . . . . . . 1 . . . . . . . . Fortress 1 | . . . . . . . . . . . . . . . . . . . . . . . . . . . . 1 . . . Artisan 1 | . . . 1 . . . . . . . . . . . . . . . . . . . . . . . . . . . . Subdweller 15 | . . . 15 . . . . . . . . . . . . . . . . . . . . . . . . . . . . Samaritan 1 | . . . . . . . . . . . . . . 1 . . . . . . . . . . . . . . . . . Tinkerer 1 | . . . . . . . . . . . . 1 . . . . . . . . . . . . . . . . . . . Thug 2 | . . . . . . . . . . . . . . . . . 2 . . . . . . . . . . . . . . Butcher 1 | . . . . . . . . . . . . . . . . . . . . . 1 . . . . . . . . . . Guerrilla 1 | . . . . . . . . . . . . . . . . . 1 . . . . . . . . . . . . . . Mutant 2 | . . . . . . . . . . . . . . . . . . . . . 1 . 1 . . . . . . . . Best Kill Streak 26 | 1 3 2 3 6 5 5 6 . 5 4 5 . . 4 11 8 2 2 8 5 4 . 4 1 5 4 2 7 26 . . Combat Bots Only 20 | . 3 2 3 5 5 5 6 . 5 4 5 . . 4 5 4 2 . 2 5 4 . 4 1 4 3 1 4 20 . . Max Kills in Single Turn 7 | 1 1 1 1 5 3 1 2 . 2 1 1 1 . 2 2 2 3 1 7 3 1 . 2 1 2 2 2 3 5 . . Gunslinging 1 | . . . . 1 1 . . . . . . . . . . 1 . . 1 1 . . 1 . . 1 . . 1 . . Exploded 4 | . . . . 4 3 . . . . . . . . 2 2 . . . . 3 . . . 1 . . . 2 4 . . Melee 1 | . . . 1 1 . . . . . . . . . . . . . . . . . . . . . . . . 1 . . Uniques/NPCs Destroyed . | . . . . . . . . . . . . . . . . . . . . . . . . . . . . . . . . Combat | -11 -10 -10 -10 -8 -8 -8 -8 -7 -7 -6 -6 -6 -6 -5 -5 -5 -5 -5 -5 -4 -4 -4 -4 -3 -3 -3 -2 -2 -2 -1 -1 -------- Run | Yrd Mat Min Sub Mat Gar Mat Gar Fac DSF Fac Low Low Dat Pro Fac Ext Cet Arc Hub Fac Upp Upp War Pro Res Tes Res Qua Sec Acc Com Hostile Shots Fired 2322 | . 15 20 56 111 76 58 105 . 28 105 50 . . 96 158 42 27 . 14 200 63 . 98 15 23 54 12 181 524 27 164 Missed 614 | . 7 5 12 35 20 15 18 . 11 33 14 . . 27 38 14 8 . 3 61 13 . 20 2 3 13 3 38 108 16 77 Hits 1708 | . 8 15 44 76 56 43 87 . 17 72 36 . . 69 120 28 19 . 11 139 50 . 78 13 20 41 9 143 416 11 87 Melee 3 | . . . . . . . . . . . . . . . . . . . . . 1 . 1 . . . . . 1 . . Projectile 1705 | . 8 15 44 76 56 43 87 . 17 72 36 . . 69 120 28 19 . 11 139 49 . 77 13 20 41 9 143 415 11 87 AOE 8 | . . . . . . . . . . . . . . . . . . . . . . . 6 . . . 1 . 1 . . Critical Strikes 93 | . . 2 1 2 1 1 7 . 2 1 2 . . 3 8 . 7 . 1 6 3 . 3 1 1 1 . 8 21 . 11 Actively Blocked 32 | . . . . . . . . . . . . . . . . . . . . . . . 1 . . . . . 20 . 11 Part Disruptions 13 | . . . . . . . . . . . . . . . . . . . . 1 7 . 1 . . 1 . . 3 . . Damage Taken 29681 | . 68 203 936 1088 534 753 1268 . 480 565 650 . . 1540 2393 645 384 . 325 2499 516 . 1066 199 500 747 214 2314 7683 237 1874 Core 3940 | . 8 16 115 53 89 16 116 . 78 21 68 . . 42 115 43 14 . 21 135 19 . 78 . 47 61 . 35 1239 237 1274 Absorbed by Shields 3887 | . . . . . . . 14 . . . . . . . . 98 115 . . 221 196 . 218 105 . 204 . 455 1980 20 261 Reduced by Siege Mode 294 | . . . . . . . . . . . . . . . . . . . . 53 . . . . . . . 35 206 . . Ignored by Resistances 809 | . . . 21 55 139 76 . . 4 . . . . . . . . . . . . . . . . . . 339 175 . . Regen/Repaired (Parts) 1541 | . . . . 57 . 127 . . . . . . . . 296 . . . . . . . 854 . . . 207 . . . . Core Remaining (%) 69 | 100 . . 44 . . . 50 . 88 . . . . 84 . . . . 80 . . . . 79 . 91 . . 12 . . Volleys Fired 943 | 4 6 14 36 77 78 35 62 . 13 16 27 3 . 39 59 44 22 28 17 72 14 3 49 16 16 34 15 65 79 . . Largest 5 | 2 2 2 2 3 3 3 3 . 4 4 4 4 . 4 4 4 4 4 5 5 5 5 4 4 4 4 4 4 4 . . Hottest 281 | 40 40 40 80 78 78 81 84 . 156 156 202 202 . 223 281 240 218 218 252 271 271 271 240 185 240 240 240 221 206 . . Shots Fired 2810 | 8 12 28 56 225 194 100 162 . 52 64 108 12 . 91 149 120 78 106 64 280 45 15 169 34 55 95 39 199 250 . . Gun 2665 | 8 12 28 44 222 190 100 162 . 52 64 108 12 . 70 80 99 78 106 64 276 45 15 169 33 55 95 39 197 242 . . Cannon 93 | . . . 12 . . . . . . . . . . 4 65 8 . . . . . . . . . . . . 4 . . Launcher 32 | . . . . 3 4 . . . . . . . . 12 2 . . . . 4 . . . 1 . . . 2 4 . . Special 20 | . . . . . . . . . . . . . . 5 2 13 . . . . . . . . . . . . . . . Kinetic 1972 | 8 12 28 44 222 190 100 162 . 47 48 68 6 . 40 48 49 42 53 44 172 28 9 158 18 39 69 27 98 143 . . Thermal 786 | . . . 12 . . . . . 5 16 40 6 . 39 97 58 36 53 20 104 17 6 11 15 16 26 12 99 98 . . Explosive 30 | . . . . 3 4 . . . . . . . . 12 2 . . . . 2 . . . 1 . . . 2 4 . . Electromagnetic 3 | . . . . . . . . . . . . . . . . . . . . 2 . . . . . . . . 1 . . Entropic 4 | . . . . . . . . . . . . . . . . . . . . . . . . . . . . . 4 . . Robot Hit Streak 38 | 2 4 10 9 9 21 13 13 . 17 10 24 4 . 35 12 11 9 7 14 23 8 . 21 4 11 35 38 22 29 . . Robot Miss Streak 6 | 1 3 2 2 3 3 4 6 . 3 2 2 3 . 3 4 4 5 5 2 5 2 . 5 1 2 1 1 2 5 . . Penetration Max 2 | . . . . 1 1 1 1 . 1 . 1 . . . 1 1 1 1 1 1 . . 1 . . 1 . 1 2 . . Secondary Targets 61 | . . 1 . 2 8 2 5 . 3 . 1 . . . . 4 . . 1 6 . . 4 . 1 4 . 4 15 . . Max Gunslinging Chain 2 | . . 1 . 1 1 1 1 . 1 . 1 . . . . 1 . . 1 1 . . 1 . 1 1 . 1 2 . . Shots Hit Robots 1841 | 5 6 18 65 147 123 63 103 . 37 42 80 6 . 61 87 80 52 47 30 179 24 . 119 17 31 69 21 143 186 . . Core Hits 848 | 1 4 8 21 70 51 31 41 . 19 17 35 2 . 33 40 35 32 27 26 74 8 . 47 5 13 27 9 62 110 . . Critical Kills 41 | . . . . 1 2 2 2 . . . . . . . 3 2 1 1 3 4 . . 7 . 2 4 1 . 6 . . Critical Parts Destroyed 65 | . . . . 2 . 1 3 . . . . . . 1 . 3 2 1 2 8 1 . 18 1 1 6 2 5 8 . . Critical Strikes 132 | . . . 1 3 2 3 5 . . 1 7 1 . 4 5 6 5 4 5 14 1 . 26 1 3 10 3 5 17 . . Burn 17 | . . . . . . . . . . 1 7 1 . 2 2 . 2 2 . . . . . . . . . . . . . Meltdown 2 | . . . . . . . . . . . . . . . 2 . . . . . . . . . . . . . . . . Destroy 110 | . . . . 3 2 3 5 . . . . . . 2 1 6 3 2 5 14 1 . 26 1 3 10 3 5 15 . . Impale 1 | . . . 1 . . . . . . . . . . . . . . . . . . . . . . . . . . . . Sunder 2 | . . . . . . . . . . . . . . . . . . . . . . . . . . . . . 2 . . Melee Attacks 122 | . . . 59 16 35 3 . . . 1 . . . . . . . . . 4 . . . . . . . 2 2 . . Kinetic 4 | . . . . . . . . . . . . . . . . . . . . . . . . . . . . 2 2 . . Impact 46 | . . . 22 1 23 . . . . . . . . . . . . . . . . . . . . . . . . . . Slashing 20 | . . . . . 12 3 . . . 1 . . . . . . . . . 4 . . . . . . . . . . . Piercing 52 | . . . 37 15 . . . . . . . . . . . . . . . . . . . . . . . . . . . Sneak Attacks 2 | . . . 1 1 . . . . . . . . . . . . . . . . . . . . . . . . . . . Combat Hostiles . | . . . . . . . . . . . . . . . . . . . . . . . . . . . . . . . . Follow-up Attacks 5 | . . . 5 . . . . . . . . . . . . . . . . . . . . . . . . . . . . Damage Inflicted 53859 | 67 68 284 1567 3349 2693 1408 2076 . 785 860 1562 119 . 2161 3085 1723 1296 1155 1857 5290 744 . 3584 650 982 2678 661 5661 7493 . 1 Guns 43262 | 67 68 224 479 2519 2132 1335 2076 . 785 851 1562 119 . 1212 1224 1463 1296 1155 863 4615 744 . 3584 553 926 2535 594 4850 5431 . . Cannons 2469 | . . . 226 . . . . . . . . . . 66 1696 260 . . . . . . . . . . . . 221 . . Explosions 6245 | . . . . 504 561 . . . . . . . . 843 165 . . . 957 554 . . . 97 . . . 756 1808 . . Melee 1254 | . . . 862 326 . . . . . . . . . . . . . . . . . . . . . . . 33 33 . . Ramming 589 | . . 60 . . . 73 . . . 9 . . . . . . . . 37 121 . . . . 56 143 67 22 . . 1 Kinetic 30897 | 67 68 224 479 2519 2132 1335 2076 . 699 598 990 54 . 608 815 683 654 596 425 2552 404 . 3493 378 681 2166 435 2437 3329 . . Thermal 15108 | . . . 226 . . . . . 86 253 572 65 . 710 2105 1040 642 559 438 2063 340 . 91 175 245 369 159 2446 2524 . . Explosive 4695 | . . . . 504 561 . . . . . . . . 843 165 . . . . 381 . . . 97 . . . 756 1388 . . Electromagnetic 1161 | . . . . . . . . . . . . . . . . . . . 957 173 . . . . . . . . 31 . . Impact 138 | . . . 138 . . . . . . . . . . . . . . . . . . . . . . . . . . . . Slashing . | . . . . . . . . . . . . . . . . . . . . . . . . . . . . . . . . Piercing 1050 | . . . 724 326 . . . . . . . . . . . . . . . . . . . . . . . . . . . Entropic 221 | . . . . . . . . . . . . . . . . . . . . . . . . . . . . . 221 . . Highest Corruption 40 | . . . . . . . 2 . . . . . . 1 32 32 38 38 40 6 12 12 12 6 . 7 . 9 28 . . Average Corruption 9 | . . . . . . . 1 . . . . . . 1 26 32 33 14 3 3 8 12 2 4 . 5 . 5 6 . . Corruption Purged 56 | . . . . . . . . . . . . . . . . . 1 35 . . . . . 6 . . . 10 4 . . Corruption Blocked . | . . . . . . . . . . . . . . . . . . . . . . . . . . . . . . . . Effects 367 | . . . . . . . 20 . . . . . . 12 18 70 32 31 14 35 26 19 6 17 . 15 . 30 22 . . Message Errors 87 | . . . . . . . 7 . . . . . . 3 2 15 9 9 5 11 4 3 1 1 . 3 . 7 7 . . Matter Fused 79 | . . . . . . . 4 . . . . . . 3 4 18 3 2 2 8 5 3 3 10 . 4 . 5 5 . . Heat Flow Errors 33 | . . . . . . . . . . . . . . . 3 10 1 2 . 5 1 5 1 1 . 1 . 2 1 . . Energy Discharges 46 | . . . . . . . 4 . . . . . . 1 . 8 2 4 4 1 6 4 . 3 . 1 . 6 2 . . Parts Rejected 5 | . . . . . . . . . . . . . . . . . 1 . 1 1 1 . . . . 1 . . . . . Parts Fused 6 | . . . . . . . 1 . . . . . . . 1 1 1 . 1 . . . 1 . . . . . . . . Data Loss (minor) 31 | . . . . . . . 1 . . . . . . 2 1 6 2 3 . 3 4 2 . 2 . 1 . 3 1 . . Data Loss (major) 21 | . . . . . . . 1 . . . . . . 1 1 3 2 2 1 4 . 1 . . . . . 4 1 . . Misfires 15 | . . . . . . . 1 . . . . . . . . 4 2 1 . 1 2 . . . . 2 . . 2 . . Alerts 10 | . . . . . . . . . . . . . . 2 1 1 2 1 . . . 1 . . . 2 . . . . . Misdirections 4 | . . . . . . . . . . . . . . . 2 2 . . . . . . . . . . . . . . . Weapon Failures 30 | . . . . . . . 1 . . . . . . . 3 2 7 7 . 1 3 . . . . . . 3 3 . . Overload Shots 13 | . . . . . . . . . . . . . . . . . . . . 1 1 . 1 . 2 2 6 . . . . Effects 1 | . . . . . . . . . . . . . . . . . . . . . . . . . . . 1 . . . . Short Circuit 1 | . . . . . . . . . . . . . . . . . . . . . . . . . . . 1 . . . . Overflow Damage 314 | . . . . 40 . 3 . . . . . . . 20 57 . . . 33 32 . . . 2 . 8 9 34 76 . . Projectiles 70 | . . . . . . . . . . . . . . 3 57 . . . . . . . . . . . . . 10 . . Explosions 166 | . . . . 5 . . . . . . . . . 17 . . . . 32 10 . . . 2 . . . 34 66 . . Melee 78 | . . . . 35 . 3 . . . . . . . . . . . . 1 22 . . . . . 8 9 . . . . Knockbacks 9 | . . . . . . 1 . . . . . . . . 5 . . . . 1 . . . . 1 1 . . . . . Impact 4 | . . . . . . 1 . . . . . . . . . . . . . 1 . . . . 1 1 . . . . . Kinetic 5 | . . . . . . . . . . . . . . . 5 . . . . . . . . . . . . . . . . Secondary . | . . . . . . . . . . . . . . . . . . . . . . . . . . . . . . . . Self-Inflicted Damage 426 | . . . . . . . . . . . . . . 50 . . . . 69 63 . . . . . . . 100 144 . . Shots 10 | . . . . . . . . . . . . . . 2 . . . . 1 3 . . . . . . . 2 2 . . Rammed 35 | . . 5 . . . 7 . . . 1 . . . . . . . . 2 5 . . . . 4 5 2 1 . . 3 Targets Rammed 38 | . . 7 . . . 7 . . . 1 . . . . . . . . 2 5 . . . . 4 6 2 1 . . 3 Kicked . | . . . . . . . . . . . . . . . . . . . . . . . . . . . . . . . . Crushed 3 | . . 2 . . . . . . . . . . . . . . . . . . . . . . . 1 . . . . . Highest Temperature 404 | . . 33 46 215 168 171 165 . 6 150 213 363 . 263 404 200 208 214 276 255 235 226 284 242 272 132 260 350 348 . . Average Temperature 70 | . . 11 18 81 48 51 60 . 6 55 55 187 . 88 117 50 17 46 98 81 59 62 57 40 54 42 75 148 67 . . Received Heat Transfer 3788 | . 9 138 120 441 189 360 474 . 63 138 270 . . 262 189 93 . . 96 236 69 . 48 37 21 48 . 112 327 . 48 Effects 6 | . . . . 3 . . . . . . . 1 . . 1 . . . . . . . . . . . . . 1 . . Energy Bleed 1 | . . . . . . . . . . . . . . . 1 . . . . . . . . . . . . . . . . Interference 5 | . . . . 3 . . . . . . . 1 . . . . . . . . . . . . . . . . 1 . . Siege Activations 10 | . . . . . . . . . . . . . . . . . 1 . . 3 . . . . . . . 4 2 . . Total Turns 256 | . . . . . . . . . . . . . . . . . 19 . . 62 . . . . . . . 77 98 . . Longest Duration 58 | . . . . . . . . . . . . . . . . . 19 . . 36 . . . . . . . 39 58 . . Martial Activations . | . . . . . . . . . . . . . . . . . . . . . . . . . . . . . . . . Shielding Activations . | . . . . . . . . . . . . . . . . . . . . . . . . . . . . . . . . Robots Disrupted . | . . . . . . . . . . . . . . . . . . . . . . . . . . . . . . . . Combat Hostiles . | . . . . . . . . . . . . . . . . . . . . . . . . . . . . . . . . Robots Corrupted 2 | . . . . . . . . . . . . . . . . . . . 1 . . . . . . . 1 . . . . Combat Hostiles . | . . . . . . . . . . . . . . . . . . . . . . . . . . . . . . . . Parts Fried 8 | . . . . . . . . . . . . . . . . . . . 6 2 . . . . . . . . . . . Impact Corruptions 5 | . . . . . . 1 . . . . . . . . . . . . 1 1 . . . . . 1 1 . . . . Robots Melted 4 | . . . . . . . . . . . . . . . 3 1 . . . . . . . . . . . . . . . Combat Hostiles 4 | . . . . . . . . . . . . . . . 3 1 . . . . . . . . . . . . . . . Parts Melted 63 | . . . . . . . . . . . 6 . . 2 14 7 . 7 2 7 3 . 1 . . . 1 5 8 . . Heat Transferred 22639 | . . . 296 . . . . . 200 650 2000 250 . 1675 3566 1603 962 1036 592 2738 444 . 148 148 296 407 185 2590 2853 . . Parts Sabotaged 3 | . . . . . . . . . . . . . . . . . . . . . . . . . . . . . 3 . . Parts Stolen . | . . . . . . . . . . . . . . . . . . . . . . . . . . . . . . . . Parts Stripped 31 | . . . . . . . . . . . . . . . . . . . . . . . . . . . . 18 13 . . Power Chain Reactions 1 | . . . . . . . . . . . . . . . . . . . . . . . . . . . . . 1 . . Alert | -11 -10 -10 -10 -8 -8 -8 -8 -7 -7 -6 -6 -6 -6 -5 -5 -5 -5 -5 -5 -4 -4 -4 -4 -3 -3 -3 -2 -2 -2 -1 -1 ------- Run | Yrd Mat Min Sub Mat Gar Mat Gar Fac DSF Fac Low Low Dat Pro Fac Ext Cet Arc Hub Fac Upp Upp War Pro Res Tes Res Qua Sec Acc Com Maximum Alert Level 4 | . . . . 1 4 2 4 2 2 1 . . . . 1 2 1 1 2 2 . . . . . . . 2 4 3 2 Low Security (%) 47 | 100 100 100 . 95 . . . . . 6 . . . . 72 84 . 70 36 . . . . . 100 100 100 29 17 . . Level 1 23 | . . . . 4 9 . 9 . 2 93 . . . . 27 5 99 29 37 77 . . . . . . . 33 56 . 12 Level 2 17 | . . . . . 19 100 26 100 97 . . . . . . 10 . . 25 22 . . . . . . . 37 5 29 87 Level 3 7 | . . . . . 39 . 45 . . . . . . . . . . . . . . . . . . . . . 10 70 . Level 4 4 | . . . . . 31 . 18 . . . . . . . . . . . . . . . . . . . . . 11 . . Level 5 . | . . . . . . . . . . . . . . . . . . . . . . . . . . . . . . . . High Security . | . . . . . . . . . . . . . . . . . . . . . . . . . . . . . . . . Max Security . | . . . . . . . . . . . . . . . . . . . . . . . . . . . . . . . . Sterilizations 1 | . . . . . . . . . 1 . . . . . . . . . . . . . . . . . . . . . . Peak Influence 1389 | 5 100 60 . 319 1389 694 1151 604 595 312 . . . . 272 424 353 256 628 544 . . . . 87 97 51 497 1240 760 473 Initial 700 | . . 25 . . 205 676 310 604 405 312 . . . . 152 114 221 94 2 280 . . . . . . 26 6 261 700 473 Average 301 | . 36 7 . 83 891 552 813 592 493 255 . . . . 158 153 287 148 248 333 . . . . 11 32 3 293 461 715 438 Influence Increases 13235 | 5 111 150 . 930 1184 708 881 5 200 235 305 . . 270 722 890 366 294 1004 1256 90 . 380 65 163 384 100 866 1551 120 . Destroy 0b10 Robot/C 7060 | . 60 100 . 580 680 440 500 . 160 120 220 . . 220 360 420 160 80 240 720 80 . 320 40 80 220 20 440 800 . . Destroy 0b10 Robot/NC 550 | 5 . 20 . 80 . 30 . . 5 . . . . 10 35 40 10 45 70 30 . . 15 5 20 20 25 35 50 . . Destroy Leader 1196 | . 10 20 . 148 20 136 30 . 20 60 40 . . 40 76 44 . . 56 162 10 . . 20 14 32 16 84 158 . . Allied During Kill 968 | . . 10 . . . 45 . . . . . . . . . 302 170 125 301 15 . . . . . . . . . . . Successful Hack 188 | . 11 . . 18 21 6 . 5 . 24 . . . . 15 . . . 9 38 . . . . 24 10 . 7 . . . Disable Machine 705 | . . . . 45 . 15 15 . 15 30 . . . . 15 15 . 30 75 105 . . . . 15 90 15 90 135 . . Anti-Garrison Action 700 | . . . . . 400 . 300 . . . . . . . . . . . . . . . . . . . . . . . . Destroy Structure 1253 | . . . . 29 63 6 6 . . 1 . . . . 56 54 26 14 238 126 . . . . 10 12 24 195 393 . . Advance Influence 150 | . . . . . . . . . . . . . . . 150 . . . . . . . . . . . . . . . . Partial Spotted 30 | . . . . . . 15 . . . . . . . . . . . . . . . . . . . . . 15 . . . Lose Combat Pursuer 435 | . 30 . . 30 . 15 30 . . . 45 . . . 15 15 . . 15 60 . . 45 . . . . . 15 120 . Influence Decreases 12872 | 5 45 216 . 614 111 1619 208 577 184 601 534 . . 265 493 728 525 525 438 1294 569 55 177 268 163 337 135 413 848 548 377 Entered New Map 4238 | . . 41 . . 111 713 168 547 174 283 85 . . . 3 120 175 143 4 292 199 11 . 203 . . 21 6 204 468 267 Time Decay 6559 | 5 45 155 . 464 . 506 . 30 . 318 429 . . 200 380 488 230 362 244 632 350 44 157 65 153 307 114 367 374 80 60 Lost Part 715 | . . . . . . . 40 . 10 . 20 . . 65 110 20 . . . 30 20 . 20 . 10 20 . 40 270 . 40 Lost Ally 450 | . . 20 . . . 100 . . . . . . . . . 100 120 20 40 40 . . . . . . . . . . 10 Purge Threat 910 | . . . . 150 . 300 . . . . . . . . . . . . 150 300 . . . . . 10 . . . . . Squads Dispatched 51 | . . . . 3 . 2 . . 1 6 . . . . 3 1 . . 3 5 . . . . 2 3 2 9 9 1 1 Investigation 2 | . . . . . . . . . . . . . . . . . . . . . . . . . . . . 2 . . . Extermination 17 | . . . . . . . . . . 2 . . . . 1 . . . 1 4 . . . . . 2 . 4 2 1 . Reinforcement 23 | . . . . 2 . 2 . . 1 1 . . . . 2 1 . . . . . . . . 2 1 2 3 5 . 1 Assault 3 | . . . . . . . . . . . . . . . . . . . 2 . . . . . . . . . 1 . . Garrison 5 | . . . . 1 . . . . . 3 . . . . . . . . . 1 . . . . . . . . . . . Intercept 1 | . . . . . . . . . . . . . . . . . . . . . . . . . . . . . 1 . . Searches Triggered . | . . . . . . . . . . . . . . . . . . . . . . . . . . . . . . . . Construction Impeded 2 | . . . . . . . . . . . . . . . . . . . . . . . . . . . . 1 1 . . Haulers Reinforced 6 | . . . . . . . . . . . . . . . 2 . . . . . . . . . 1 . 2 . 1 . . Active Scanning Responses . | . . . . . . . . . . . . . . . . . . . . . . . . . . . . . . . . Cargo Convoy Interrupts . | . . . . . . . . . . . . . . . . . . . . . . . . . . . . . . . . Stealth | -11 -10 -10 -10 -8 -8 -8 -8 -7 -7 -6 -6 -6 -6 -5 -5 -5 -5 -5 -5 -4 -4 -4 -4 -3 -3 -3 -2 -2 -2 -1 -1 --------- Run | Yrd Mat Min Sub Mat Gar Mat Gar Fac DSF Fac Low Low Dat Pro Fac Ext Cet Arc Hub Fac Upp Upp War Pro Res Tes Res Qua Sec Acc Com Distress Signals 31 | . . . . 4 . 3 . . . . . . . 2 1 . 2 . . 2 . . . 1 3 1 4 2 2 4 . Communications Jammed 163 | . . . . . . . . . 4 . . . . 1 73 83 . . 1 . . . . . 1 . . . . . . Distress Signals 152 | . . . . . . . . . . . . . . . 67 83 . . 1 . . . . . 1 . . . . . . Times Spotted 596 | . 10 5 14 38 27 37 26 . 8 11 13 . . 13 28 24 9 14 16 49 4 . 97 5 9 20 4 28 55 14 18 Peak Tracking Total 18 | . 4 3 2 6 5 5 5 . 5 3 5 . . 4 7 5 5 1 3 6 3 . 14 3 3 4 3 4 18 11 17 Tactical Retreats 21 | . 1 . . 2 . 1 1 . . . 3 . . . 1 1 . . 1 3 . . 2 . . . . . 1 4 . Traps | -11 -10 -10 -10 -8 -8 -8 -8 -7 -7 -6 -6 -6 -6 -5 -5 -5 -5 -5 -5 -4 -4 -4 -4 -3 -3 -3 -2 -2 -2 -1 -1 ------- Run | Yrd Mat Min Sub Mat Gar Mat Gar Fac DSF Fac Low Low Dat Pro Fac Ext Cet Arc Hub Fac Upp Upp War Pro Res Tes Res Qua Sec Acc Com Traps Triggered 18 | . . . . . 3 . 1 . 1 . . . . . . 1 . . 1 2 . . 1 . 1 . . . 1 2 4 Indirectly . | . . . . . . . . . . . . . . . . . . . . . . . . . . . . . . . . Trap Hack Attempts . | . . . . . . . . . . . . . . . . . . . . . . . . . . . . . . . . Triggered . | . . . . . . . . . . . . . . . . . . . . . . . . . . . . . . . . Disarmed . | . . . . . . . . . . . . . . . . . . . . . . . . . . . . . . . . Reprogrammed . | . . . . . . . . . . . . . . . . . . . . . . . . . . . . . . . . Reused . | . . . . . . . . . . . . . . . . . . . . . . . . . . . . . . . . Traps Extracted . | . . . . . . . . . . . . . . . . . . . . . . . . . . . . . . . . Installed . | . . . . . . . . . . . . . . . . . . . . . . . . . . . . . . . . Triggered . | . . . . . . . . . . . . . . . . . . . . . . . . . . . . . . . . Most Traps Carried 1 | . . . 1 1 . . . . . . . . . . . . . . . . . . . . . . . . . . . Machines | -11 -10 -10 -10 -8 -8 -8 -8 -7 -7 -6 -6 -6 -6 -5 -5 -5 -5 -5 -5 -4 -4 -4 -4 -3 -3 -3 -2 -2 -2 -1 -1 ---------- Run | Yrd Mat Min Sub Mat Gar Mat Gar Fac DSF Fac Low Low Dat Pro Fac Ext Cet Arc Hub Fac Upp Upp War Pro Res Tes Res Qua Sec Acc Com Machines Disabled 61 | . . . . 3 6 1 5 . 1 2 . 1 . . 1 3 . 2 5 7 . . 1 . 1 6 1 6 9 . . Max in Single Turn 4 | . . . . 1 1 1 1 . 1 1 . 1 . . 1 . . 1 4 2 . . 1 . 1 1 1 1 2 . . Garrison Access 4 | . . . . . . . . . . . . . . . . . . . 1 1 . . . . . 1 1 . . . . Garrison Relay 10 | . . . . . 6 . 4 . . . . . . . . . . . . . . . . . . . . . . . . Network Hub 2 | . . . . . . . . . . . . . . . . . . . 2 . . . . . . . . . . . . Machines Repaired . | . . . . . . . . . . . . . . . . . . . . . . . . . . . . . . . . Machines Dismantled . | . . . . . . . . . . . . . . . . . . . . . . . . . . . . . . . . Machines Sabotaged . | . . . . . . . . . . . . . . . . . . . . . . . . . . . . . . . . Overloaded Fab Kills . | . . . . . . . . . . . . . . . . . . . . . . . . . . . . . . . . Hacking | -11 -10 -10 -10 -8 -8 -8 -8 -7 -7 -6 -6 -6 -6 -5 -5 -5 -5 -5 -5 -4 -4 -4 -4 -3 -3 -3 -2 -2 -2 -1 -1 --------- Run | Yrd Mat Min Sub Mat Gar Mat Gar Fac DSF Fac Low Low Dat Pro Fac Ext Cet Arc Hub Fac Upp Upp War Pro Res Tes Res Qua Sec Acc Com Machines Accessed 65 | . 2 . 2 9 3 5 4 1 . 4 . . 3 . 3 3 . . 5 10 . . 1 . 4 2 . 2 1 1 . Terminals 37 | . 2 . . 5 3 2 4 1 . 1 . . . . 1 3 . . 5 6 . . . . 1 1 . 1 1 . . Fabricators 5 | . . . . . . . . . . 1 . . . . 1 . . . . 1 . . . . 2 . . . . . . Repair Stations 3 | . . . . 1 . 1 . . . . . . . . 1 . . . . . . . . . . . . . . . . Recycling Units . | . . . . . . . . . . . . . . . . . . . . . . . . . . . . . . . . Scanalyzers 7 | . . . . 2 . 1 . . . 1 . . . . . . . . . 1 . . . . 1 . . 1 . . . Garrison Access 7 | . . . . 1 . 1 . . . 1 . . . . . . . . . 2 . . . . . 1 . . . 1 . Total Hacks 194 | . 9 . 4 20 3 16 9 3 . 10 . . 24 . 11 6 . . 12 29 . . 1 . 10 11 . 10 3 3 . Successful 99 | . 4 . 4 14 2 8 . 1 . 7 . . 24 . 6 . . . 6 9 . . 1 . 2 5 . 6 . . . Failed 95 | . 5 . . 6 1 8 9 2 . 3 . . . . 5 6 . . 6 20 . . . . 8 6 . 4 3 3 . Catastrophic 30 | . . . . 1 1 3 1 . . 2 . . . . 1 3 . . 1 6 . . . . 6 1 . . 3 1 . Database Lockouts . | . . . . . . . . . . . . . . . . . . . . . . . . . . . . . . . . Manual 71 | . 6 . . 9 . 4 . . . 4 . . . . 4 3 1 . 9 6 . . 1 . 5 9 . 10 . . . Terminals 111 | . 9 . . 9 3 9 9 3 . 3 . . . . 4 6 . . 12 18 . . . . 5 10 . 8 3 . . Fabricators 14 | . . . . . . . . . . 4 . . . . 3 . . . . 4 . . . . 3 . . . . . . Repair Stations 8 | . . . . 2 . 2 . . . . . . . . 4 . . . . . . . . . . . . . . . . Recycling Units . | . . . . . . . . . . . . . . . . . . . . . . . . . . . . . . . . Scanalyzers 20 | . . . . 8 . 3 . . . 1 . . . . . . . . . 4 . . . . 2 . . 2 . . . Garrison Access 12 | . . . . 1 . 2 . . . 2 . . . . . . . . . 3 . . . . . 1 . . . 3 . Terminal Hacks 56 | . 2 . 4 2 2 3 . 1 . 2 . . 24 . 1 . . . 4 4 . . 1 . . 2 . 4 . . . Record 9 | . . . 3 . . . . . . . . . 6 . . . . . . . . . . . . . . . . . . Part Schematic 9 | . . . . . . . . . . . . . 9 . . . . . . . . . . . . . . . . . . Robot Schematic 6 | . . . . . . . . . . . . . 6 . . . . . . . . . . . . . . . . . . Prototype ID Bank 5 | . . . . . . . . . . 1 . . 3 . 1 . . . . . . . . . . . . . . . . Open Door 2 | . . . . . 1 . . . . . . . . . . . . . . . . . 1 . . . . . . . . Open DSF 1 | . . . . . . . . 1 . . . . . . . . . . . . . . . . . . . . . . . Branch Access Points 2 | . . . . . . . . . . 1 . . . . . . . . . 1 . . . . . . . . . . . Emergency Access Points 1 | . . . . . 1 . . . . . . . . . . . . . . . . . . . . . . . . . . Terminal Index 2 | . . . . . . . . . . . . . . . . . . . . 1 . . . . . . . 1 . . . Alert Level 1 | . . . . . . . . . . . . . . . . . . . 1 . . . . . . . . . . . . Unreport Threat 7 | . . . . 1 . 2 . . . . . . . . . . . . 1 2 . . . . . 1 . . . . . Locate Traps 5 | . 2 . . . . . . . . . . . . . . . . . 1 . . . . . . 1 . 1 . . . Recall Investigation 1 | . . . . . . . . . . . . . . . . . . . . . . . . . . . . 1 . . . Zone Layout 4 | . . . . 1 . 1 . . . . . . . . . . . . 1 . . . . . . . . 1 . . . Proto ID Catalog 1 | . . . 1 . . . . . . . . . . . . . . . . . . . . . . . . . . . . Fabricator Hacks 4 | . . . . . . . . . . 2 . . . . 1 . . . . . . . . . 1 . . . . . . Network Status 3 | . . . . . . . . . . 1 . . . . 1 . . . . . . . . . 1 . . . . . . Build 1 | . . . . . . . . . . 1 . . . . . . . . . . . . . . . . . . . . . Repair Station Hacks 6 | . . . . 2 . 2 . . . . . . . . 2 . . . . . . . . . . . . . . . . Scan Component 3 | . . . . 1 . 1 . . . . . . . . 1 . . . . . . . . . . . . . . . . Repair 3 | . . . . 1 . 1 . . . . . . . . 1 . . . . . . . . . . . . . . . . Recycling Unit Hacks . | . . . . . . . . . . . . . . . . . . . . . . . . . . . . . . . . Scanalyzer 13 | . . . . 7 . 2 . . . . . . . . . . . . . 3 . . . . 1 . . . . . . Insert Component 1 | . . . . 1 . . . . . . . . . . . . . . . . . . . . . . . . . . . Analyze 1 | . . . . 1 . . . . . . . . . . . . . . . . . . . . . . . . . . . Retrieve Study 11 | . . . . 5 . 2 . . . . . . . . . . . . . 3 . . . . 1 . . . . . . Garrison Access Hacks 4 | . . . . 1 . 1 . . . . . . . . . . . . . 1 . . . . . 1 . . . . . Unlock Access 2 | . . . . 1 . 1 . . . . . . . . . . . . . . . . . . . . . . . . . Seal Access 2 | . . . . . . . . . . . . . . . . . . . . 1 . . . . . 1 . . . . . Unauthorized Hacks 16 | . 2 . . 2 . . . . . 3 . . . . 2 . . . 2 1 . . . . . 2 . 2 . . . Terminals 12 | . 2 . . 2 . . . . . 1 . . . . 1 . . . 2 1 . . . . . 2 . 1 . . . Assimilate 1 | . . . . . . . . . . . . . . . . . . . . . . . . . . 1 . . . . . Botnet 8 | . 1 . . 2 . . . . . 1 . . . . 1 . . . 1 1 . . . . . . . 1 . . . Operators 3 | . 1 . . . . . . . . . . . . . . . . . 1 . . . . . . 1 . . . . . Fabricators 3 | . . . . . . . . . . 2 . . . . 1 . . . . . . . . . . . . . . . . Prioritize 1 | . . . . . . . . . . 1 . . . . . . . . . . . . . . . . . . . . . Haulers 2 | . . . . . . . . . . 1 . . . . 1 . . . . . . . . . . . . . . . . Repair Stations . | . . . . . . . . . . . . . . . . . . . . . . . . . . . . . . . . Recycling Units . | . . . . . . . . . . . . . . . . . . . . . . . . . . . . . . . . Scanalyzers 1 | . . . . . . . . . . . . . . . . . . . . . . . . . . . . 1 . . . Researchers 1 | . . . . . . . . . . . . . . . . . . . . . . . . . . . . 1 . . . Garrison Access . | . . . . . . . . . . . . . . . . . . . . . . . . . . . . . . . . Data Cores Recovered 3 | . . . . . . . . . . . . . . . . . . . 1 1 . . . . . . . 1 . . . Used . | . . . . . . . . . . . . . . . . . . . . . . . . . . . . . . . . Hacking Detections 46 | . 1 . . 6 3 4 4 1 . 4 . . . . 2 3 . . 4 6 . . . . 3 1 . 2 1 1 . Full Trace Events . | . . . . . . . . . . . . . . . . . . . . . . . . . . . . . . . . Feedback Events . | . . . . . . . . . . . . . . . . . . . . . . . . . . . . . . . . Feedback Blocked . | . . . . . . . . . . . . . . . . . . . . . . . . . . . . . . . . Robot Schematics Acquired 7 | . . . . . . . . . . . . . 6 . . . . . . . . . . . . . . . 1 . . Robots Built . | . . . . . . . . . . . . . . . . . . . . . . . . . . . . . . . . Authchips . | . . . . . . . . . . . . . . . . . . . . . . . . . . . . . . . . Time . | . . . . . . . . . . . . . . . . . . . . . . . . . . . . . . . . Total Robot Build Rating . | . . . . . . . . . . . . . . . . . . . . . . . . . . . . . . . . Part Schematics Acquired 14 | . . . . 1 . . . . . . . . 9 . . . . . . . . . . . . . . . 4 . . Parts Built 1 | . . . . . . . . . . 1 . . . . . . . . . . . . . . . . . . . . . Authchips . | . . . . . . . . . . . . . . . . . . . . . . . . . . . . . . . . Time 152 | . . . . . . . . . . 152 . . . . . . . . . . . . . . . . . . . . . Total Part Build Rating 5 | . . . . . . . . . . 5 . . . . . . . . . . . . . . . . . . . . . Part Studies Acquired 11 | . . . . 5 . 2 . . . . . . . . . . . . . 3 . . . . 1 . . . . . . Parts Repaired 3 | . . . . 1 . 1 . . . . . . . . 1 . . . . . . . . . . . . . . . . Time 120 | . . . . 44 . 38 . . . . . . . . 38 . . . . . . . . . . . . . . . . Parts Recycled . | . . . . . . . . . . . . . . . . . . . . . . . . . . . . . . . . Recycled Matter . | . . . . . . . . . . . . . . . . . . . . . . . . . . . . . . . . Retrieved Matter . | . . . . . . . . . . . . . . . . . . . . . . . . . . . . . . . . Retrieved Components . | . . . . . . . . . . . . . . . . . . . . . . . . . . . . . . . . Parts Scanalyzed 1 | . . . . 1 . . . . . . . . . . . . . . . . . . . . . . . . . . . Part Schematics Acquired 1 | . . . . 1 . . . . . . . . . . . . . . . . . . . . . . . . . . . Parts Damaged . | . . . . . . . . . . . . . . . . . . . . . . . . . . . . . . . . Bothacking | -11 -10 -10 -10 -8 -8 -8 -8 -7 -7 -6 -6 -6 -6 -5 -5 -5 -5 -5 -5 -4 -4 -4 -4 -3 -3 -3 -2 -2 -2 -1 -1 ------------ Run | Yrd Mat Min Sub Mat Gar Mat Gar Fac DSF Fac Low Low Dat Pro Fac Ext Cet Arc Hub Fac Upp Upp War Pro Res Tes Res Qua Sec Acc Com Used RIF Installer . | . . . . . . . . . . . . . . . . . . . . . . . . . . . . . . . . Robots Hacked 1 | . . . . . . . . . . . . . . . 1 . . . . . . . . . . . . . . . . Non-combat 1 | . . . . . . . . . . . . . . . 1 . . . . . . . . . . . . . . . . Combat . | . . . . . . . . . . . . . . . . . . . . . . . . . . . . . . . . Robot Hacks Applied 1 | . . . . . . . . . . . . . . . 1 . . . . . . . . . . . . . . . . find_chute 1 | . . . . . . . . . . . . . . . 1 . . . . . . . . . . . . . . . . Relay Couplers Released 57 | . . . . . 27 . 19 . . . . . . . . . . . 3 7 . . . . . . 1 . . . . Machine Destruction 47 | . . . . . 27 . 19 . . . . . . . . . . . . . . . . . . . 1 . . . . Programmers 10 | . . . . . . . . . . . . . . . . . . . 3 7 . . . . . . . . . . . Fabnet Peak Effective % . | . . . . . . . . . . . . . . . . . . . . . . . . . . . . . . . . Robots Rewired 13 | . . . . . 3 . . . . . . . . . . 10 . . . . . . . . . . . . . . . Allies Hacked . | . . . . . . . . . . . . . . . . . . . . . . . . . . . . . . . . Hacks Repelled . | . . . . . . . . . . . . . . . . . . . . . . . . . . . . . . . . Allies | -11 -10 -10 -10 -8 -8 -8 -8 -7 -7 -6 -6 -6 -6 -5 -5 -5 -5 -5 -5 -4 -4 -4 -4 -3 -3 -3 -2 -2 -2 -1 -1 -------- Run | Yrd Mat Min Sub Mat Gar Mat Gar Fac DSF Fac Low Low Dat Pro Fac Ext Cet Arc Hub Fac Upp Upp War Pro Res Tes Res Qua Sec Acc Com Total Allies 37 | . . 3 . . 5 . . . . . . . . . . 24 5 . . . . . . . . . . . . . . Largest Group 16 | . . 3 2 . 4 5 . . . . . . . . . 16 15 10 6 2 . . . . . . . . . . . Highest-Rated Group 764 | . . 40 24 . 66 71 . . . . . . . . . 579 764 738 500 192 . . . . . . . . . . . Highest-Rated Ally 159 | . . 16 16 . 31 31 . . . . . . . . . 159 159 159 96 96 . . . . . . . . . . . Initial Warlord ECA Mod 24 | . . . . . . 8 8 15 15 24 24 24 24 23 23 23 23 23 23 22 22 22 22 21 21 21 20 20 20 19 19 Total Orders 9 | . . . . . . . . . . . . . . . . . 2 2 4 . . . . . . . . . . . 1 STAY 6 | . . . . . . . . . . . . . . . . . 1 1 4 . . . . . . . . . . . . FOLLOW 2 | . . . . . . . . . . . . . . . . . 1 1 . . . . . . . . . . . . . EXPLORE 1 | . . . . . . . . . . . . . . . . . . . . . . . . . . . . . . . 1 Ally Attacks 337 | . . 9 4 . . 62 . . . . . . . . . 127 48 29 39 19 . . . . . . . . . . . Total Damage 8591 | . . 112 34 . . 718 . . . . . . . . . 2538 1669 1183 1583 754 . . . . . . . . . . . Kills 58 | . . 3 . . . 12 . . . . . . . . . 14 9 6 10 4 . . . . . . . . . . . Allies Corrupted 2 | . . . . . . . . . . . . . . . . . . . 2 . . . . . . . . . . . . Allies Melted 2 | . . . . . . . . . . . . . . . . 1 . . . . . . . . . . 1 . . . . Intel | -11 -10 -10 -10 -8 -8 -8 -8 -7 -7 -6 -6 -6 -6 -5 -5 -5 -5 -5 -5 -4 -4 -4 -4 -3 -3 -3 -2 -2 -2 -1 -1 ------- Run | Yrd Mat Min Sub Mat Gar Mat Gar Fac DSF Fac Low Low Dat Pro Fac Ext Cet Arc Hub Fac Upp Upp War Pro Res Tes Res Qua Sec Acc Com Active Infowar (turns) 24976 | 7 145 914 1305 580 523 868 401 64 117 693 1892 1313 160 1633 888 1329 6 14 713 1877 653 465 878 1144 1051 1328 1755 1415 845 . . Optics 7941 | . . . 101 . . . . . . . . . . . . . . . . . . . 302 1144 1051 1328 1755 1415 845 . . IFF 8456 | . . . . . . . . . . . 1643 1313 160 1631 . . . . . 244 653 465 576 1079 54 638 . . . . . Seismic 12724 | 7 145 914 1204 580 329 856 59 64 . 685 63 . . . 541 359 . . 448 1319 . . . . 940 976 1751 932 552 . . Jamming 10424 | . . . . . 194 12 342 . 117 60 1793 1313 160 288 884 1329 6 14 713 1538 . . . . 1013 648 . . . . . Robot Analysis Total . | . . . . . . . . . . . . . . . . . . . . . . . . . . . . . . . . Derelict Logs Recovered 10 | . . 2 2 . . . . . . . 2 1 . 2 . . . . . . 1 . . . . . . . . . . Drone Launches 2 | . . . . . . . . . . . . . . . . . . . . . . . . . . . . . . . 2 Drone Recoveries 1 | . . . . . . . . . . . . . . . . . . . . . . . . . . . . . . . 1 Exploration | -11 -10 -10 -10 -8 -8 -8 -8 -7 -7 -6 -6 -6 -6 -5 -5 -5 -5 -5 -5 -4 -4 -4 -4 -3 -3 -3 -2 -2 -2 -1 -1 ------------- Run | Yrd Mat Min Sub Mat Gar Mat Gar Fac DSF Fac Low Low Dat Pro Fac Ext Cet Arc Hub Fac Upp Upp War Pro Res Tes Res Qua Sec Acc Com Turns Passed 32675 | 91 195 975 1690 1791 1753 1374 1464 64 192 718 1900 1313 160 1861 888 1329 484 829 713 2208 781 465 1599 1144 1051 1328 1755 1415 860 165 120 Spaces Moved 15984 | 42 106 557 1116 860 833 700 710 38 75 306 866 639 80 719 262 592 193 394 344 1076 420 274 711 487 553 635 969 645 327 273 182 Core 385 | 3 . . 10 . . . . . . . . . . . . . . . . . . . . . . . . . 20 273 79 Treads 13859 | 39 106 557 103 660 833 700 710 38 75 306 866 639 80 719 204 216 193 394 344 1076 420 274 711 487 553 635 969 645 307 . . Legs . | . . . . . . . . . . . . . . . . . . . . . . . . . . . . . . . . Wheels 1637 | . . . 1003 200 . . . . . . . . . . 58 376 . . . . . . . . . . . . . . . Hover 103 | . . . . . . . . . . . . . . . . . . . . . . . . . . . . . . . 103 Flight . | . . . . . . . . . . . . . . . . . . . . . . . . . . . . . . . . Fastest Speed 50 | 50 160 160 95 95 162 162 162 165 165 202 202 202 202 202 212 125 160 160 160 163 165 165 163 165 165 176 166 160 50 50 50 Average Speed 167 | 152 160 160 116 152 162 162 165 165 187 203 202 202 202 233 237 192 176 160 161 165 166 165 164 165 168 176 168 160 157 50 55 Slowest Speed 1350 | 160 160 160 550 240 162 162 167 165 206 205 202 202 202 285 285 250 234 160 165 246 246 165 165 165 176 176 180 166 1350 50 60 Overloaded Moves . | . . . . . . . . . . . . . . . . . . . . . . . . . . . . . . . . Propulsion Burnouts . | . . . . . . . . . . . . . . . . . . . . . . . . . . . . . . . . Robots Hopped . | . . . . . . . . . . . . . . . . . . . . . . . . . . . . . . . . Potential Cave-ins 2 | . . . . . . . . . . . . . . . . . . . . . . . . . . . . . 2 . . Cave-ins Triggered . | . . . . . . . . . . . . . . . . . . . . . . . . . . . . . . . . Exploration Rate (%) 55 | 4 36 93 48 85 85 67 60 2 86 12 97 84 70 83 10 83 56 96 42 34 58 52 76 71 25 88 39 78 26 11 13 Regions Visited 31 Branch Regions 18 Pre-discovered Areas 6 | . . 1 3 . . . . . . . 1 . 1 . . . . . . . . . . . . . . . . . . Known Exits Taken 7 | . . . . 1 . 1 . 1 . 1 1 . . . . . . . . 1 . . . . . 1 . . . . . Unknown Exits Taken 21 | 1 1 1 1 . . . . . . . . 1 1 1 1 1 1 1 1 . 1 1 1 1 1 . 1 1 1 1 . Scrap Searched 23 | . . 1 2 . . . . . . . 5 9 . 1 . . . . . . 4 . . 1 . . . . . . . Spaces Dug 137 | . . . 8 1 3 3 . . . 1 . . . 1 2 . . . . 10 . 9 1 37 1 2 3 30 25 . . Terrain Destroyed 802 | . . . 9 22 14 4 5 . . 3 . . . 86 33 3 1 4 181 77 15 9 15 51 8 5 7 92 158 . . Melee 20 | . . . 8 1 3 3 . . . 1 . . . . . . . . . 4 . . . . . . . . . . . Projectile 289 | . . . 1 . 1 1 4 . . 2 . . . 5 26 3 1 4 24 66 15 9 15 17 8 5 7 30 45 . . AOE 490 | . . . . 21 10 . . . . . . . . 81 7 . . . 157 6 . . . 34 . . . 62 112 . . Terrain Rammed . | . . . . . . . . . . . . . . . . . . . . . . . . . . . . . . . . Walls Destroyed . | . . . . . . . . . . . . . . . . . . . . . . . . . . . . . . . . Machines Disabled . | . . . . . . . . . . . . . . . . . . . . . . . . . . . . . . . . Actions | -11 -10 -10 -10 -8 -8 -8 -8 -7 -7 -6 -6 -6 -6 -5 -5 -5 -5 -5 -5 -4 -4 -4 -4 -3 -3 -3 -2 -2 -2 -1 -1 --------- Run | Yrd Mat Min Sub Mat Gar Mat Gar Fac DSF Fac Low Low Dat Pro Fac Ext Cet Arc Hub Fac Upp Upp War Pro Res Tes Res Qua Sec Acc Com Total 19798 | 57 120 609 1368 1198 1069 861 879 39 98 367 947 654 79 827 401 706 293 523 456 1318 470 279 1023 798 637 776 1068 888 491 300 199 Wait 1725 | . 3 29 105 151 59 87 77 . . 10 36 12 . 44 40 32 38 78 66 85 29 3 213 286 15 55 32 110 25 . 5 Move 15953 | 41 105 556 1115 860 832 700 707 37 74 305 865 638 79 718 261 591 192 393 343 1075 419 273 710 486 552 634 968 644 326 272 182 Hop . | . . . . . . . . . . . . . . . . . . . . . . . . . . . . . . . . Pick Up 153 | 3 2 1 13 23 2 1 6 . 3 8 2 1 . 3 5 6 13 2 4 9 2 . 10 . 5 5 9 9 6 . . Fast Attach 150 | 6 . . 8 10 . 2 . . 2 2 1 . . 5 10 7 5 13 2 10 1 . 7 2 13 11 11 11 7 . 4 Attach 103 | 1 1 1 7 8 . . 4 2 1 2 3 . . 5 8 2 1 2 1 5 2 . 4 . 4 4 3 13 18 . 1 Detach 57 | . 1 1 3 7 . . . . 1 1 . . . . 2 4 3 . . 3 . . 2 . 4 5 6 10 4 . . Swap 286 | 2 1 . 21 20 31 19 16 . 3 10 11 . . 13 12 10 3 2 14 33 3 . 11 7 8 9 3 7 17 . . Drop 203 | . 1 . 6 26 4 7 6 . 1 11 2 . . . 3 6 16 5 6 14 . . 17 1 16 13 19 16 7 . . Fire 943 | 4 6 14 36 77 78 35 62 . 13 16 27 3 . 39 59 44 22 28 17 72 14 3 49 16 16 34 15 65 79 . . Melee 117 | . . . 54 16 35 3 . . . 1 . . . . . . . . . 4 . . . . . . . 2 2 . . Ram 4 | . . . . . . . . . . . . . . . . 1 . . . . . . . . . . . . . . 3 Kick . | . . . . . . . . . . . . . . . . . . . . . . . . . . . . . . . . Crush 35 | . . 7 . . . 7 . . . 1 . . . . . . . . 2 5 . . . . 4 6 2 1 . . . Escape Stasis 37 | . . . . . 2 . 1 . . . . . . . . 2 . . . . . . . . . . . . . 28 4 Rewire 27 | . . . . . 26 . . . . . . . . . . 1 . . . . . . . . . . . . . . . Trap . | . . . . . . . . . . . . . . . . . . . . . . . . . . . . . . . . Miscellaneous 5 | . . . . . . . . . . . . . . . 1 . . . 1 3 . . . . . . . . . . . Route ------- -11/Scrapyard -10/Materials -10/Mines (discovered 2 exits: [*Mat] / *Sub) -10/Subcaves (discovered 2 exits: *Mat x2) -8/Materials (discovered 4 exits: *Fac x3 / Gar) -8/Garrison (discovered 4 exits: *Fac x3 / *Mat) -8/Materials (discovered 3 exits: *Fac x2 / Gar) -8/Garrison (discovered 3 exits: *Fac x3) -7/Factory -7/DSF -6/Factory (discovered 2 exits: *Low x2) -6/Lower Caves -6/Lower Caves (discovered 2 exits: *Fac / *Dat) -6/Data Miner -5/Proximity Caves -5/Factory (discovered 2 exits: Upp / *Ext) -5/Extension (discovered 2 exits: *Fac / *Cet) -5/Cetus (discovered 2 exits: *Fac / [*Arc]) -5/Archives (discovered 3 exits: *Fac / *Hub x2) -5/Hub_04(d) -4/Factory (discovered 6 exits: *Res x3 / *Upp x2 / Arm) -4/Upper Caves -4/Upper Caves (discovered 2 exits: *Res / *War) -4/Warlord -3/Proximity Caves -3/Research (discovered 3 exits: *Res x2 / *Tes) -3/Testing -2/Research (discovered 2 exits: *Acc / *Qua) -2/Quarantine (discovered 2 exits: *Sec / [*Frg]) -2/Section 7 -1/Access -1/Command History --------- Turn | Location | Event 4 | -11/Scrapyard | Discovered new exit (range 16) 92 | -11/Scrapyard | Entered Materials 247 | -10/Materials | Discovered new exit (range 12) 287 | -10/Materials | Entered Mines 297 | -10/Mines | Met a Derelict bent on vengeance 314 | -10/Mines | Build established: Mutant 361 | -10/Mines | Deemed a non-threat by the Exiles lab entrance 620 | -10/Mines | Assisted by bots powering up and referring to "LRC-V3" 663 | -10/Mines | Learned Materials emergency access door positions 683 | -10/Mines | Discovered new exit (range 11) 877 | -10/Mines | Discovered new exit (range 10) 1095 | -10/Mines | Learned location of Zion (-7) 1262 | -10/Mines | Entered Subcaves 1262 | -10/Subcaves | Accompanied by 2 allies 1263 | -10/Subcaves | Approached by a straggling Scientist 1354 | -10/Subcaves | Met a Zionite searching for "candidates" 1527 | -10/Subcaves | Lost 4 parts (1p2n1w) 1603 | -10/Subcaves | Visited Clippyterm 1606 | -10/Subcaves | Learned location of Extension (-5) 1813 | -10/Subcaves | Discovered new exit (range 7) 2140 | -10/Subcaves | A Subdweller sparked back to life 2140 | -10/Subcaves | A Subdweller sparked back to life 2197 | -10/Subcaves | Found Prototype Processor 2241 | -10/Subcaves | Shifting Twisted Machinery released Riot Gun 2383 | -10/Subcaves | Discovered new exit (range 16) 2553 | -10/Subcaves | Core integrity fell below 50% 2793 | -10/Subcaves | Visited 4L-MR0's lab 2798 | -10/Subcaves | Identified Rainbow Chip 2952 | -10/Subcaves | Entered Materials 2952 | -8/Materials | Evolved 4 slots: Propulsion x2, Utility x1, Weapon x1 3235 | -8/Materials | Build established: Scavenger-Mutant 3398 | -8/Materials | Discovered new exit (range 7) 3775 | -8/Materials | Build established: Scavenger-Tank 3894 | -8/Materials | Discovered new exit (range 15) 4229 | -8/Materials | Build established: Tank 4500 | -8/Materials | Repaired Gauss Rifle 4653 | -8/Materials | Discovered new exit (range 15) 4695 | -8/Materials | Garrison activated, responded to threat 4743 | -8/Materials | Identified exit to Garrison 4743 | -8/Materials | Entered Garrison 4781 | -8/Garrison | Garrison Relay disabled 4818 | -8/Garrison | Triggered checkpoint 4845 | -8/Garrison | Garrison Relay disabled 4902 | -8/Garrison | Triggered checkpoint 4925 | -8/Garrison | Garrison Relay disabled 5049 | -8/Garrison | Triggered checkpoint 5104 | -8/Garrison | Triggered checkpoint 5283 | -8/Garrison | Triggered checkpoint 5289 | -8/Garrison | Garrison Relay disabled 5357 | -8/Garrison | Triggered checkpoint 5385 | -8/Garrison | Discovered new exit (range 15) 5565 | -8/Garrison | Triggered checkpoint 5591 | -8/Garrison | Garrison Relay disabled 5601 | -8/Garrison | Triggered checkpoint 5665 | -8/Garrison | Discovered new exit (range 6) 5728 | -8/Garrison | Discovered new exit (range 10) 5883 | -8/Garrison | Triggered checkpoint 5977 | -8/Garrison | Discovered new exit (range 12) 6049 | -8/Garrison | Triggered checkpoint 6089 | -8/Garrison | Garrison Relay disabled 6281 | -8/Garrison | Rescued a captive Derelict 6283 | -8/Garrison | Rescued a captive Derelict 6496 | -8/Garrison | Entered Materials 6496 | -8/Materials | Accompanied by 5 allies 6603 | -8/Materials | Build established: Scavenger-Mutant 6881 | -8/Materials | Discovered new exit (range 15) 6965 | -8/Materials | Repaired Arm. Treads 7255 | -8/Materials | Build established: Scavenger-Tank 7296 | -8/Materials | Discovered new exit (range 5) 7771 | -8/Materials | Build established: Tank 7870 | -8/Materials | Identified exit to Garrison 7870 | -8/Materials | Entered Garrison 7992 | -8/Garrison | Triggered checkpoint 8030 | -8/Garrison | Garrison Relay disabled 8165 | -8/Garrison | Triggered checkpoint 8247 | -8/Garrison | Discovered new exit (range 13) 8283 | -8/Garrison | Build established: Scavenger-Tank 8302 | -8/Garrison | Triggered checkpoint 8334 | -8/Garrison | Garrison Relay disabled 8453 | -8/Garrison | Triggered checkpoint 8589 | -8/Garrison | Triggered checkpoint 8664 | -8/Garrison | Garrison Relay disabled 8704 | -8/Garrison | Discovered new exit (range 12) 8774 | -8/Garrison | Triggered checkpoint 8866 | -8/Garrison | Triggered checkpoint 8901 | -8/Garrison | Garrison Relay disabled 9003 | -8/Garrison | Discovered new exit (range 14) 9079 | -8/Garrison | Attempted to access garrison exit controls, blocked by remote lockdown 9206 | -8/Garrison | Attempted to access garrison exit controls, blocked by remote lockdown 9334 | -8/Garrison | Entered Factory 9334 | -7/Factory | Evolved 2 slots: Utility x1, Weapon x1 9398 | -7/Factory | Identified exit to DSF 9398 | -7/Factory | Entered DSF 9417 | -7/DSF | Additional patrols routed to DSF 9510 | -7/DSF | Discovered new exit (range 14) 9547 | -7/DSF | Sterilization system engaged 9567 | -7/DSF | Ambient heat levels rising (+10) 9582 | -7/DSF | Ambient heat levels rising (+10) 9590 | -7/DSF | Entered Factory 9590 | -6/Factory | Evolved 2 slots: Power x1, Utility x1 10016 | -6/Factory | Fabricated Cold Fusion Reactor? 10262 | -6/Factory | Identified exit to Lower Caves 10308 | -6/Factory | Entered Lower Caves 10318 | -6/Lower Caves | Met a Warlord Commander 10319 | -6/Lower Caves | Learned location of Warlord (-4) 10320 | -6/Lower Caves | Warlord Commander delivered Encrypted Comm Array 10325 | -6/Lower Caves | Found Encrypted Comm Array 10660 | -6/Lower Caves | Identified exit to Lower Caves 12170 | -6/Lower Caves | Learned Factory trap positions 12208 | -6/Lower Caves | Entered another Lower Caves area 12246 | -6/Lower Caves | Discovered new exit (range 5) 12405 | -6/Lower Caves | Learned Factory terminal intel 12562 | -6/Lower Caves | Encountered a Warlord checkpoint 13264 | -6/Lower Caves | Discovered new exit (range 6) 13521 | -6/Lower Caves | Entered Data Miner 13521 | -6/Data Miner | Discovered new exit (range 6) 13560 | -6/Data Miner | Met Data Miner 13594 | -6/Data Miner | Learned location of Section 7 (-2) 13594 | -6/Data Miner | Acquired the access code to Warlord's prototype stash 13629 | -6/Data Miner | Received God Mode back door access code from Data Miner 13681 | -6/Data Miner | Entered Proximity Caves 13786 | -5/Proximity Caves | Spotter reported a threat 13959 | -5/Proximity Caves | Spotted B-75 Beast 14002 | -5/Proximity Caves | Destroyed B-75 Beast 14022 | -5/Proximity Caves | Lost 5 parts (1p2n2w) 14958 | -5/Proximity Caves | Learned 8 Factory zone layouts 15378 | -5/Proximity Caves | Discovered new exit (range 15) 15421 | -5/Proximity Caves | Attracted the attention of an 0b10 checkpoint 15542 | -5/Proximity Caves | Entered Factory 15542 | -5/Factory | Evolved 2 slots: Propulsion x1, Utility x1 15543 | -5/Factory | Identified exit to Upper Caves 15545 | -5/Factory | Loaded intel: 89 trap records 15546 | -5/Factory | Loaded intel: 28 terminal locations 15614 | -5/Factory | Repaired Arm. Treads+ 16196 | -5/Factory | System corruption reached 10% 16237 | -5/Factory | System corruption reached 30% 16264 | -5/Factory | Lost 9 parts (2p4n1u2w) 16414 | -5/Factory | Discovered new exit (range 6) 16430 | -5/Factory | Entered Extension 16511 | -5/Extension | Rescued a captive Derelict 16543 | -5/Extension | Rescued a captive Derelict 16544 | -5/Extension | Rescued a captive Derelict 16586 | -5/Extension | Rescued a captive Derelict 17091 | -5/Extension | Spotted B-75 Beast 17118 | -5/Extension | Allies destroyed B-75 Beast 17128 | -5/Extension | Spotted B-75 Beast 17144 | -5/Extension | Destroyed B-75 Beast 17171 | -5/Extension | Lost 3 allies 17285 | -5/Extension | Rescued a captive Derelict 17286 | -5/Extension | Rescued a captive Derelict 17338 | -5/Extension | Rescued a captive Derelict 17343 | -5/Extension | Rescued a captive Derelict 17372 | -5/Extension | Rescued A7 17412 | -5/Extension | Rescued a captive Derelict 17519 | -5/Extension | Rescued a captive Derelict 17520 | -5/Extension | Rescued a captive Derelict 17548 | -5/Extension | Rescued a captive Derelict 17633 | -5/Extension | Lost 4 allies 17663 | -5/Extension | Rescued a captive Derelict 17715 | -5/Extension | Discovered new exit (range 10) 17717 | -5/Extension | Discovered new exit (range 6) 17759 | -5/Extension | Entered Cetus 17759 | -5/Cetus | Accompanied by 15 allies (A7) 17764 | -5/Cetus | Acquired a Cetus Manufacturing Module code from A7 17792 | -5/Cetus | Spotted Cetus Guard 17792 | -5/Cetus | Spotted Cetus Guard 17797 | -5/Cetus | Spotted Cetus Guard 17802 | -5/Cetus | Allies destroyed Cetus Guard 17804 | -5/Cetus | Allies destroyed Cetus Guard 17810 | -5/Cetus | Allies destroyed Cetus Guard 17833 | -5/Cetus | Lost 3 allies 17941 | -5/Cetus | Started Cetus Manufacturing Module 17960 | -5/Cetus | Discovered new exit (range 16) 17966 | -5/Cetus | Manufactured an Enhanced Grunt 17987 | -5/Cetus | Spotted Cetus Guard 17987 | -5/Cetus | Spotted Cetus Guard 17990 | -5/Cetus | Spotted Cetus Guard 17991 | -5/Cetus | Manufactured an Enhanced Grunt 17991 | -5/Cetus | Spotted Cetus Guard 18006 | -5/Cetus | Allies destroyed Cetus Guard 18006 | -5/Cetus | Destroyed Cetus Guard 18010 | -5/Cetus | Destroyed Cetus Guard 18016 | -5/Cetus | Manufactured an Enhanced Grunt 18018 | -5/Cetus | Allies destroyed Cetus Guard 18035 | -5/Cetus | Discovered new exit (range 16) 18041 | -5/Cetus | Manufactured an Enhanced Grunt 18042 | -5/Cetus | Lost 6 allies 18049 | -5/Cetus | Met Revision 17 18066 | -5/Cetus | Manufactured an Enhanced Grunt 18243 | -5/Cetus | Entered Archives 18243 | -5/Archives | Accompanied by 10 allies (A7) 18315 | -5/Archives | Lost 3 allies 18360 | -5/Archives | Discovered new exit (range 15) 18429 | -5/Archives | Discovered new exit (range 13) 18663 | -5/Archives | Discovered new exit (range 15) 18913 | -5/Archives | Attached Rainbow Chip, gained temporary slots: Power, Propulsion, Utility, Weapon 19072 | -5/Archives | Entered Hub_04(d) 19072 | -5/Hub_04(d) | Accompanied by 6 allies 19471 | -5/Hub_04(d) | Discovered new exit (range 8) 19519 | -5/Hub_04(d) | Found Prototype Device 19520 | -5/Hub_04(d) | Identified Exp. Thermal Shield 19733 | -5/Hub_04(d) | Network Hub disabled 19760 | -5/Hub_04(d) | Network Hub disabled 19785 | -5/Hub_04(d) | Entered Factory 19785 | -4/Factory | Accompanied by 2 allies 19785 | -4/Factory | Evolved 2 slots: Utility x2 20531 | -4/Factory | Discovered new exit (range 5) 20744 | -4/Factory | Found Prototype Launcher 20744 | -4/Factory | Identified Com. Tesla Bomb Launcher 20840 | -4/Factory | Spotted B-86 Titan 20851 | -4/Factory | Destroyed B-86 Titan 21352 | -4/Factory | Identified exit to Upper Caves 21352 | -4/Factory | Identified exit to Armory 21361 | -4/Factory | Discovered new exit (range 9) 21455 | -4/Factory | Discovered new exit (range 15) 21870 | -4/Factory | Garrison activated, responded to threat 21993 | -4/Factory | Entered Upper Caves 22024 | -4/Upper Caves | Learned Research stockpile data 22112 | -4/Upper Caves | Encountered a Warlord checkpoint 22463 | -4/Upper Caves | P-70 Sage assimilated allied 5R-2OA(l) 22468 | -4/Upper Caves | P-70 Sage assimilated allied Z0-3Q7(M) 22488 | -4/Upper Caves | System corruption reached 10% 22762 | -4/Upper Caves | Discovered new exit (range 6) 22774 | -4/Upper Caves | Entered another Upper Caves area 22823 | -4/Upper Caves | Discovered new exit (range 11) 23165 | -4/Upper Caves | Discovered new exit (range 13) 23239 | -4/Upper Caves | Entered Warlord 23297 | -4/Warlord | System corruption cleaned by Quarantine Array 23797 | -4/Warlord | Opened Warlord's prototype stash 23808 | -4/Warlord | Found Prototype Reactor 23816 | -4/Warlord | Found Prototype Device 23816 | -4/Warlord | Identified System Purifier 23825 | -4/Warlord | Found Prototype Hackware 23897 | -4/Warlord | Met Warlord 23922 | -4/Warlord | Warlord's base attacked by MAIN.C 23967 | -4/Warlord | Found Prototype Energy Cannon 23967 | -4/Warlord | Identified Vortex Driver 23977 | -4/Warlord | Found Vortex Driver 24093 | -4/Warlord | Spotted B-90 Cyclops 24272 | -4/Warlord | Warlord forces counterattacked 24284 | -4/Warlord | Spotted B-90 Cyclops 24290 | -4/Warlord | Spotted B-86 Titan 24311 | -4/Warlord | Spotted Executioner 24406 | -4/Warlord | Lost 19 allies 24438 | -4/Warlord | Spotted Striker 24489 | -4/Warlord | Spotted Executioner 24497 | -4/Warlord | Spotted Executioner 24528 | -4/Warlord | Lost 12 allies 24533 | -4/Warlord | Found Prototype Processor 24534 | -4/Warlord | Identified Exp. Targeting Computer 24545 | -4/Warlord | Spotted Striker 24571 | -4/Warlord | Spotted Striker 24597 | -4/Warlord | Warlord base infiltrated, sounded retreat 24619 | -4/Warlord | Destroyed Striker 24628 | -4/Warlord | Spotted Striker 24652 | -4/Warlord | Lost 3 allies 24667 | -4/Warlord | Spotted Executioner 24711 | -4/Warlord | Spotted Executioner 24719 | -4/Warlord | Destroyed Executioner 24727 | -4/Warlord | Lost 3 allies 24729 | -4/Warlord | Spotted Striker 24734 | -4/Warlord | Destroyed Striker 24773 | -4/Warlord | Lost 5 allies 24780 | -4/Warlord | Spotted Executioner 24818 | -4/Warlord | Discovered new exit (range 14) 24838 | -4/Warlord | Entered Proximity Caves 25007 | -3/Proximity Caves | Spotted B-86 Titan 25737 | -3/Proximity Caves | Discovered new exit (range 22) 25969 | -3/Proximity Caves | Attracted the attention of an 0b10 checkpoint 25982 | -3/Proximity Caves | Entered Research 25982 | -3/Research | Evolved 2 slots: Power x1, Utility x1 26182 | -3/Research | Revision forces began assault on 0b10 26196 | -3/Research | Met up with Revision 17++ 26579 | -3/Research | Discovered new exit (range 5) 26588 | -3/Research | Identified exit to Research 26590 | -3/Research | Discovered exit to Research (range 10) 26682 | -3/Research | Research terminal network offline 27006 | -3/Research | Discovered new exit (range 10) 27033 | -3/Research | Entered Testing 27047 | -3/Testing | Watched by a mysterious "MATRIX" hacker. 27196 | -3/Testing | Found Prototype Device 27196 | -3/Testing | Identified Exp. Thermal Shield 27232 | -3/Testing | Found Prototype Energy Gun 27232 | -3/Testing | Identified Tachyon Dispersion Ray 27291 | -3/Testing | Found Prototype Device 27291 | -3/Testing | Identified Exp. Shield Generator 27477 | -3/Testing | Found Prototype Hackware 27610 | -3/Testing | Found Prototype Processor 27610 | -3/Testing | Identified Exp. Signal Interpreter 27759 | -3/Testing | Discovered exit to Research (range 22) 27844 | -3/Testing | Found Quantum Capacitor 28064 | -3/Testing | Found Prototype Device 28064 | -3/Testing | Identified Exp. Hardlight Generator 28167 | -3/Testing | Found Prototype Device 28167 | -3/Testing | Identified AEGIS Remote Shield 28361 | -3/Testing | Entered Research 28361 | -2/Research | Warlord forces began assault on 0b10 28361 | -2/Research | Evolved 2 slots: Power x1, Propulsion x1 28364 | -2/Research | Identified Vortex Chain Reactor 28386 | -2/Research | Distinguished unit "Lair Dwellers" dispatched to help 28386 | -2/Research | Distinguished unit "Knights of the Pentagonal Table" dispatched to help 28462 | -2/Research | Found Prototype Device 28462 | -2/Research | Identified Exp. Shock Absorption System 28465 | -2/Research | Found Prototype Hackware 28465 | -2/Research | Identified Exp. Hacking Suite 28471 | -2/Research | Research machine network offline 28660 | -2/Research | Build established: Generator-Tank 28900 | -2/Research | Borebot progress halted 28976 | -2/Research | Borebot progress halted 28996 | -2/Research | Borebot progress halted 29300 | -2/Research | Found Prototype Processor 29300 | -2/Research | Identified Exp. Core Analyzer 29466 | -2/Research | Discovered new exit (range 22) 29868 | -2/Research | Given Cave Seal Controls access code 30106 | -2/Research | Discovered new exit (range 5) 30116 | -2/Research | Entered Quarantine 30460 | -2/Quarantine | Lost 3 allies 30557 | -2/Quarantine | Lost 3 parts (1p2w) 30576 | -2/Quarantine | Found Alien Impact Weapon 30791 | -2/Quarantine | Found Alien Artifact 30792 | -2/Quarantine | Identified Ghost Barrier 30800 | -2/Quarantine | Found Alien Artifact 30807 | -2/Quarantine | Found Alien Artifact 30867 | -2/Quarantine | Found Alien Artifact 31303 | -2/Quarantine | Identified Core Stripper 31308 | -2/Quarantine | Spotted Fortress 31319 | -2/Quarantine | Destroyed Fortress 31334 | -2/Quarantine | Found Vortex Chain Reactor 31337 | -2/Quarantine | Found Prototype Device 31337 | -2/Quarantine | Identified Exp. EM Shield 31380 | -2/Quarantine | Found Prototype Device 31380 | -2/Quarantine | Identified Thermal Barrier 31384 | -2/Quarantine | Found Prototype Device 31384 | -2/Quarantine | Identified Exp. Force Field 31521 | -2/Quarantine | Discovered new exit (range 6) 31521 | -2/Quarantine | Discovered new exit (range 6) 31531 | -2/Quarantine | Entered Section 7 31805 | -2/Section 7 | Found Prototype Device 31805 | -2/Section 7 | Identified Adv. EM Shield 31974 | -2/Section 7 | Destroyed 9 combat bots 32097 | -2/Section 7 | Scanned by Researcher 32205 | -2/Section 7 | Lost 3 parts (1u2w) 32229 | -2/Section 7 | System corruption reached 10% 32272 | -2/Section 7 | Destroyed 20 combat bots 32281 | -2/Section 7 | First assault squad dispatched 32311 | -2/Section 7 | Intercept squad dispatched 32311 | -2/Section 7 | Spotted Tracker 32312 | -2/Section 7 | Spotted Tracker 32313 | -2/Section 7 | Spotted Combat Programmer 32314 | -2/Section 7 | Spotted Combat Programmer 32337 | -2/Section 7 | Destroyed Tracker 32353 | -2/Section 7 | Destroyed Combat Programmer 32377 | -2/Section 7 | Core integrity fell below 50% 32385 | -2/Section 7 | Discovered new exit (range 11) 32390 | -2/Section 7 | Core integrity fell below 20% 32391 | -2/Section 7 | Entered Access 32391 | -1/Access | Evolved 2 slots: Utility x2 32408 | -1/Access | Lost 22 parts (3p4n7u8w) 32552 | -1/Access | Discovered new exit (range 7) 32556 | -1/Access | Entered Command 32623 | -1/Command | Build established: Mutant 32638 | -1/Command | Spotted B-99 Colossus 32652 | -1/Command | Identified Transdimensional Reconstructor 32652 | -1/Command | Failed to warp due to unstable space 32664 | -1/Command | Spotted Executioner 32664 | -1/Command | Spotted Executioner 32664 | -1/Command | Spotted Striker 32664 | -1/Command | Spotted Alpha 7 32664 | -1/Command | Spotted Executioner 32664 | -1/Command | Spotted Executioner 32664 | -1/Command | Spotted Striker 32664 | -1/Command | Spotted Alpha 7 32665 | -1/Command | Spotted B-99 Colossus 32668 | -1/Command | Spotted B-99 Colossus 32669 | -1/Command | Core integrity fell below 50% 32674 | -1/Command | Core integrity fell below 20% 32676 | -1/Command | Destroyed by Executioner with Helical Railgun Last Messages --------------- 32673_ Field strength at 94. 32673_ Executioner knocked back. 32673_ Slug penetrates Wall. 32673_ Executioner suffers critical hit (Destroy). 32673_ Slug penetrates Wall. 32673_ Penetrated by Slug. 32673_ Slug penetrates Executioner. 32673_ Slug penetrates Wall. 32673_ Slug penetrates Striker. 32674_ Penetrated by Slug. 32674_ Slug penetrates Wall. 32674_ Field strength at 41. 32674_ Slug penetrates P-80 Master. 32674_ Penetrated by Slug. 32674_ Stasis field depleted. 32674_ Slug penetrates B-99 Colossus. 32675_ Penetrated by Slug. 32675_ Slug penetrates Wall. 32675_ Slammed into Executioner. 32676_ Penetrated by Slug. Map ----- +----------------------------------------------------+ | ?????????????????????????????????????????????????? | | ?????????????????????????????????????????????????? | | ?????????????????????????????????????????????????? | | ?????????????????????????????????????????????????? | | ?????????????????????????????????????????????????? | | ?????????????????????????????????????????????????? | | ?????????????????????????????????????????????????? | | ?????????????????????????????????????????????????? | | ?????????????????????????????????????????????????? | | ?????????????????????????????????????????????????? | | ?????????????????????????????????????????????????? | | ?????????????????????????????????????????????????? | | ????????????????????????? ???????????????????????? | | ????????????????????????? ???????????????????????? | | ????????????????????????? ???????? #?????????????? | | ????????????????????????? ??????? #?????????????? | | ????????????????????????? ?????? #?????????????? | | ????????????????????????? """""" #?????????????? | | ????????????????????????? #?????????????? | | ????????????????????????? #?????????????? | | ????????????????????????? BB BB ???????????????? | | ?????????????????????????#BB BB##???????????????? | | ????????????????????????? #???????????????? | | ????????????????????????## ##???????????????? | | ????????????????????????# % #???????????????? | | ????????????????????????#@E EE##???????????????? | | ????????????????????????# E K #???????????????? | | ????????????????????????## ^ ##???????????????? | | ????????????????????????# %K % 7#???????????????? | | ????????????????????????##7%% ##???????????????? | | ?????????????????????????# #????????????????? | | ?????????????????????????##////##????????????????? | | ????????????????###########pp #?????????????????? | | ????????????????# #% #?????????????????? | | ????????????????# # #?????????????????? | | ????????????????# "" # ;?????????????????? | | ????????????????# """" # ; ????????????????? | | ????????????????# """" " ; ????????????????? | | ????????????????# " # ;;"####+#+#???????? | | ????????????????# " ??????? | | ????????????????# % " ??????? | | ????????????????# "" " ??????? | | ????????????????# """" # % #???????? | | ????????????????# """" # ??????? | | ????????????????# "" # "" ??????? | | ????????????????# # """" ##??????? | | ????????????????# # """" ??????? | | ????????????????# # "" #???????? | | ????????????????# # #???????? | | ????????????????########### #???????? | +----------------------------------------------------+ Best States ------------- Heat Dissipation 134 Coolant Potential 100 Energy Generation 105 Energy Capacity 1300 Matter Stores 300 Matter Capacity 300 Sight Range 23 Terrain Scan Density 10 Jamming Range 16 Armor Coverage 1200 Resistance: KI 30 Resistance: TH 30 Resistance: EM 75 Weapon Cycling 20 Evasion (%) 53 Targeting Accuracy 32 Core Analysis 8 Recoil Reduction 6 Matter Filtering 50 Salvage Targeting 3 Offensive Hacking 16 Item Schematics ----------------- Multitool | -8/Materials | Scanalyzed Combat Drone Bay | -6/Data Miner | Free Lgt. Regenerative Plating | -6/Data Miner | Free Cld. Nuclear Pulse Thruster | -6/Data Miner | Free Imp. Energy Well | -6/Data Miner | Free Hvy. Proton Cannon | -6/Data Miner | Free Imp. Antigrav System | -6/Data Miner | Free Imp. Point Defense System | -6/Data Miner | Free Hardcell Cannon | -6/Data Miner | Free Quantum Capacitor | -6/Data Miner | Free Mni. Fusion Reactor | -2/Section 7 | Archive Spectral Analyzer | -2/Section 7 | Archive Com. Mass Driver | -2/Section 7 | Archive Coolant Network | -2/Section 7 | Archive Robot Schematics ------------------ H-66 Slayer | -6/Data Miner | Free B-60 Warrior | -6/Data Miner | Free Y-54 Guardian | -6/Data Miner | Free G-50 Soldier | -6/Data Miner | Free A-27 Freighter | -6/Data Miner | Free A-15 Conveyor | -6/Data Miner | Free C-57 Dissector | -2/Section 7 | Archive Fabricated ------------ Cold Fusion Reactor | x1 | -6/Factory | Preloaded Repaired ---------- Gauss Rifle | 59% | -8/Materials Arm. Treads | 57% | -8/Materials Arm. Treads | 1% | -5/Factory Studied --------- Lgt. Treads | -8/Materials | Hacked Mni. Grenade Launcher | -8/Materials | Hacked Wheel | -8/Materials | Hacked Hammer | -8/Materials | Hacked Deuterium Engine | -8/Materials | Hacked Arm. Treads | -8/Materials | Hacked Imp. Treads | -8/Materials | Hacked Dispersion Rifle | -4/Factory | Hacked KE Penetrator | -4/Factory | Hacked Remote Datajack | -4/Factory | Hacked Quantum Reactor | -3/Research | Hacked Alien Tech Used ----------------- Core Stripper Transdimensional Reconstructor Achievements -------------- Coming In Hot Hot Goods Protector Welcome To The Revolution Window Shopping Challenges ------------ None Game ------ Seed FlyingGravitonSteel Manual? 0 Play Time 04:14:15 Cumulative 955.0 hours Start 2026.03.29 @ 12:59:43 End 2026.04.03 @ 13:43:43 Sessions 9 Manual Loads 0 Difficulty Rogue Special Mode None Game No. 855 Rogue 768 Adventurer 87 Explorer 0 Win Type - Total 65 Types 10/9/33/2/1/1/5/1/1/2 Lore% 97 Gallery% 90 Achievement% 73 Wizard Run 0 Options --------- Layout 0 ASCII 0 Keyboard 1 Movement Numpad Keybinds 0 Fullscreen 2 Font 18/SmallcapsGlow Map View 76x50 Zoom Use 0% Tactical HUD 1 Map Filters NONE Filters NONE Steam 1 RUN: 25649e55-d234-4d21-b2a6-c562f4f568de